Workbook

Sheet fevereiro
E1: =CHOOSE(MONTH($W$117),"Janeiro","Fevereiro","Março","Abril","Maio","Junho","Julho","Agosto","Setembro","Outubro","Novembro","Dezembro") -> Janeiro
F2: Ajuste o nome da aba
F3: na célula E1
B6: Data | C6: Dia Semana | D6: Folgas | E6: Entrada | F6: Saída | G6: Entrada | H6: Saída | I6: Horas Diurnas | J6: H. Not. s/ red. | K6: Hora Ficta | L6: Horas Noturnas | M6: H. Trab. | N6: H. Normais | O6: Ausências In-justificadas | P6: Compen-sadas | Q6: H. Extras | R6: HE 100% | U6: JORNADA CONTRATUAL | X6: CARTÃO PONTO ESPELHO
B7: Saldo anterior | X7: Entrada | Y7: Saída | Z7: Entrada | AA7: Saída
A8: =IF(B8="","",IF(C8<>"feriado",WEEKDAY(B8),8)) -> 8 | B8: =inicio -> 2024-01-01 | C8: =IF(B8="","",IF(COUNTIF(fer,B8)>0,"feriado",B8)) -> feriado | D8: F | E8: 08:00 | F8: 12:00 | G8: 13:00 | H8: 18:00 | I8: =IF(B8="","",ROUND(M8-L8,5)) -> 09:00:00 | J8: =IF(B8="","",IF(AND(E8="",F8="",G8="",H8=""),0,IF(AND(G8="",H8=""),MAX(ININOT,MIN(FIMNOT+1,Y8+(X8>Y8)))-MAX(ININOT,X8)+(MIN(FIMNOT,Y8+(X8>Y8))-MIN(FIMNOT,X8)),MAX(ININOT,MIN(FIMNOT+1,Y8+(X8>Y8)))-MAX(ININOT,X8)+(MIN(FIMNOT,Y8+(X8>Y8))-MIN(FIMNOT,X8))+MAX(ININOT,MIN(FIMNOT+1,AA8+(Z8>AA8)))-MAX(ININOT,Z8)+(MIN(FIMNOT,AA8+(Z8>AA8))-MIN(FIMNOT,Z8))))) -> 00:00:00 | K8: =IF(B8="","",(J8/7*8)-J8) -> 00:00:00 | L8: =IF(B8="","",J8+K8) -> 00:00:00 | M8: =IF(B8="","",MOD((Y8-X8)+(AA8-Z8),1)+K8) -> 09:00:00 | N8: =IF(B8="","",IF(D8="F",$V$16,VLOOKUP(A8,jornada,3))) -> 00:00:00 | O8: =IF(B8="","",IF(AND(D8="A",N8>M8),N8-M8,"")) ->  | P8: =IF(B8="","",IF(AND(M8>0,D8="F"),"",IF(D8="A","",IF(M8<N8,N8-M8,"")))) ->  | Q8: =IF(B8="","",IF(N8=0,0,MAX(0,M8-N8))) -> 00:00:00 | R8: =IF(B8="","",IF(N8=0,M8,0)) -> 09:00:00 | T8: 1 | U8: domingo | V8: 07:20:00 | X8: =IF(B8="","",IF($E8="",0,TIME(INT(E8/100),MOD(E8,100),0))) -> 08:00:00 | Y8: =IF(B8="","",IF($F8="",0,TIME(INT(F8/100),MOD(F8,100),0))) -> 12:00:00 | Z8: =IF(B8="","",IF($G8="",0,TIME(INT(G8/100),MOD(G8,100),0))) -> 13:00:00 | AA8: =IF(B8="","",IF($H8="",0,TIME(INT(H8/100),MOD(H8,100),0))) -> 18:00:00
A9: =IF(B9="","",IF(C9<>"feriado",WEEKDAY(B9),8)) -> 3 | B9: =B8+1 -> 2024-01-02 | C9: =IF(B9="","",IF(COUNTIF(fer,B9)>0,"feriado",B9)) -> 2024-01-02 | D9: A | E9: 00:00 | F9: 00:00 | G9: 00:00 | H9: 00:00 | I9: =IF(B9="","",ROUND(M9-L9,5)) -> 00:00:00 | J9: 00:00:00 | K9: =IF(B9="","",(J9/7*8)-J9) -> 00:00:00 | L9: =IF(B9="","",J9+K9) -> 00:00:00 | M9: =IF(B9="","",MOD((Y9-X9)+(AA9-Z9),1)+K9) -> 00:00:00 | N9: 07:20:00 | O9: =IF(B9="","",IF(AND(D9="A",N9>M9),N9-M9,"")) -> 07:20:00 | P9: =IF(B9="","",IF(AND(M9>0,D9="F"),"",IF(D9="A","",IF(M9<N9,N9-M9,"")))) ->  | Q9: =IF(B9="","",IF(N9=0,0,MAX(0,M9-N9))) -> 00:00:00 | R9: 00:00:00 | T9: 2 | U9: Segunda-feira | V9: 07:20:00 | X9: =IF(B9="","",IF($E9="",0,TIME(INT(E9/100),MOD(E9,100),0))) -> 00:00:00 | Y9: =IF(B9="","",IF($F9="",0,TIME(INT(F9/100),MOD(F9,100),0))) -> 00:00:00 | Z9: =IF(B9="","",IF($G9="",0,TIME(INT(G9/100),MOD(G9,100),0))) -> 00:00:00 | AA9: =IF(B9="","",IF($H9="",0,TIME(INT(H9/100),MOD(H9,100),0))) -> 00:00:00
A10: 4 | B10: =B9+1 -> 2024-01-03 | C10: 2024-01-03 | D10: A | E10: 08:00 | F10: 12:00 | G10: 00:00 | H10: 00:00 | I10: 04:00:00.288 | J10: 00:00:00 | K10: 00:00:00 | L10: 00:00:00 | M10: 04:00:00 | N10: 07:20:00 | O10: 03:20:00 | Q10: 00:00:00 | R10: 00:00:00 | T10: 3 | U10: Terça-feira | V10: 07:20:00 | X10: 08:00:00 | Y10: 12:00:00 | Z10: 00:00:00 | AA10: 00:00:00
A11: 5 | B11: =B10+1 -> 2024-01-04 | C11: 2024-01-04 | E11: 09:00 | F11: 12:00 | G11: 13:00 | H11: 18:00 | I11: 07:59:59.712 | J11: 00:00:00 | K11: 00:00:00 | L11: 00:00:00 | M11: 08:00:00 | N11: 07:20:00 | Q11: 00:40:00 | R11: 00:00:00 | T11: 4 | U11: Quarta-feira | V11: 07:20:00 | X11: 09:00:00 | Y11: 12:00:00 | Z11: 13:00:00 | AA11: 18:00:00
A12: 6 | B12: =B11+1 -> 2024-01-05 | C12: 2024-01-05 | E12: 09:00 | F12: 13:00 | G12: 13:30 | H12: 16:00 | I12: 06:29:59.712 | J12: 00:00:00 | K12: 00:00:00 | L12: 00:00:00 | M12: 06:30:00 | N12: 07:20:00 | P12: 00:50:00 | Q12: 00:00:00 | R12: 00:00:00 | T12: 5 | U12: Quinta-feira | V12: 07:20:00 | X12: 09:00:00 | Y12: 13:00:00 | Z12: 13:30:00 | AA12: 16:00:00
A13: 7 | B13: =B12+1 -> 2024-01-06 | C13: 2024-01-06 | E13: 10:00 | F13: 14:00 | G13: 15:30 | H13: 20:00 | I13: 08:30:00.288 | J13: 00:00:00 | K13: 00:00:00 | L13: 00:00:00 | M13: 08:30:00 | N13: 07:20:00 | Q13: 01:10:00 | R13: 00:00:00 | T13: 6 | U13: Sexta-feira | V13: 07:20:00 | X13: 10:00:00 | Y13: 14:00:00 | Z13: 15:30:00 | AA13: 20:00:00
A14: 1 | B14: 2024-01-07 | C14: 2024-01-07 | E14: 12:00 | F14: 16:00 | G14: 17:00 | H14: 22:15 | I14: 09:00:00 | J14: 00:15:00 | K14: 00:02:08.571 | L14: 00:17:08.571 | M14: 09:17:08.571 | N14: 07:20:00 | Q14: 01:57:08.571 | R14: 00:00:00 | T14: 7 | U14: Sábado | V14: 07:20:00 | X14: 12:00:00 | Y14: 16:00:00 | Z14: 17:00:00 | AA14: 22:15:00
A15: 2 | B15: 2024-01-08 | C15: 2024-01-08 | D15: F | E15: 00:00 | F15: 00:00 | G15: 00:00 | H15: 00:00 | I15: 00:00:00 | J15: 00:00:00 | K15: 00:00:00 | L15: 00:00:00 | M15: 00:00:00 | N15: 00:00:00 | Q15: 00:00:00 | R15: 00:00:00 | T15: 8 | U15: Feriados | V15: 07:20:00 | X15: 00:00:00 | Y15: 00:00:00 | Z15: 00:00:00 | AA15: 00:00:00
A16: 3 | B16: 2024-01-09 | C16: 2024-01-09 | E16: 10:00 | F16: 14:00 | G16: 14:45 | H16: 17:30 | I16: 06:45:00 | J16: 00:00:00 | K16: 00:00:00 | L16: 00:00:00 | M16: 06:45:00 | N16: 07:20:00 | P16: 00:35:00 | Q16: 00:00:00 | R16: 00:00:00 | U16: Folgas | V16: 00:00:00 | X16: 10:00:00 | Y16: 14:00:00 | Z16: 14:45:00 | AA16: 17:30:00
A17: 4 | B17: 2024-01-10 | C17: 2024-01-10 | E17: 11:00 | F17: 16:00 | G17: 17:00 | H17: 20:00 | I17: 07:59:59.712 | J17: 00:00:00 | K17: 00:00:00 | L17: 00:00:00 | M17: 08:00:00 | N17: 07:20:00 | Q17: 00:40:00 | R17: 00:00:00 | U17: HORÁRIO NOTURNO | X17: 11:00:00 | Y17: 16:00:00 | Z17: 17:00:00 | AA17: 20:00:00
A18: 5 | B18: 2024-01-11 | C18: 2024-01-11 | E18: 19:00 | F18: 21:00 | G18: 22:00 | H18: 05:00 | I18: 01:59:59.712 | J18: 07:00:00 | K18: 01:00:00 | L18: 08:00:00 | M18: 10:00:00 | N18: 07:20:00 | Q18: 02:40:00 | R18: 00:00:00 | U18: Início | V18: 22:00:00 | X18: 19:00:00 | Y18: 21:00:00 | Z18: 22:00:00 | AA18: 05:00:00
A19: 6 | B19: 2024-01-12 | C19: 2024-01-12 | D19: F | E19: 00:00 | F19: 00:00 | G19: 00:00 | H19: 00:00 | I19: 00:00:00 | J19: 00:00:00 | K19: 00:00:00 | L19: 00:00:00 | M19: 00:00:00 | N19: 00:00:00 | Q19: 00:00:00 | R19: 00:00:00 | U19: Término | V19: 05:00:00 | X19: 00:00:00 | Y19: 00:00:00 | Z19: 00:00:00 | AA19: 00:00:00
A20: 7 | B20: 2024-01-13 | C20: 2024-01-13 | E20: 05:00 | F20: 08:00 | G20: 09:00 | H20: 12:00 | I20: 06:00:00 | J20: 00:00:00 | K20: 00:00:00 | L20: 00:00:00 | M20: 06:00:00 | N20: 07:20:00 | P20: 01:20:00 | Q20: 00:00:00 | R20: 00:00:00 | U20: FECHAMENTO DO PONTO | X20: 05:00:00 | Y20: 08:00:00 | Z20: 09:00:00 | AA20: 12:00:00
A21: 1 | B21: 2024-01-14 | C21: 2024-01-14 | E21: 20:00 | F21: 22:00 | G21: 23:00 | H21: 05:00 | I21: 01:59:59.712 | J21: 06:00:00 | K21: 00:51:25.714 | L21: 06:51:25.714 | M21: 08:51:25.714 | N21: 07:20:00 | Q21: 01:31:25.714 | R21: 00:00:00 | U21: Dia do fechamento do ponto: | X21: 20:00:00 | Y21: 22:00:00 | Z21: 23:00:00 | AA21: 05:00:00
A22: 2 | B22: 2024-01-15 | C22: 2024-01-15 | E22: 15:00 | F22: 19:00 | G22: 20:00 | H22: 24:00 | I22: 06:00:00 | J22: 02:00:00 | K22: 00:17:08.571 | L22: 02:17:08.571 | M22: 08:17:08.571 | N22: 07:20:00 | Q22: 00:57:08.571 | R22: 00:00:00 | U22: Selecione o ano : | V22: 2024 | X22: 15:00:00 | Y22: 19:00:00 | Z22: 20:00:00 | AA22: 00:00:00
A23: 3 | B23: 2024-01-16 | C23: 2024-01-16 | E23: 15:00 | F23: 19:00 | G23: 20:00 | H23: 01:00 | I23: 06:00:00 | J23: 03:00:00 | K23: 00:25:42.857 | L23: 03:25:42.857 | M23: 09:25:42.857 | N23: 07:20:00 | Q23: 02:05:42.857 | R23: 00:00:00 | U23: Selecione o mês : | V23: 1 | X23: 15:00:00 | Y23: 19:00:00 | Z23: 20:00:00 | AA23: 01:00:00
A24: 4 | B24: 2024-01-17 | C24: 2024-01-17 | E24: 00:00 | F24: 00:00 | G24: 00:00 | H24: 00:00 | I24: 00:00:00 | J24: 00:00:00 | K24: 00:00:00 | L24: 00:00:00 | M24: 00:00:00 | N24: 07:20:00 | P24: 07:20:00 | Q24: 00:00:00 | R24: 00:00:00 | X24: 00:00:00 | Y24: 00:00:00 | Z24: 00:00:00 | AA24: 00:00:00
A25: 5 | B25: 2024-01-18 | C25: 2024-01-18 | E25: 16:00 | F25: 19:00 | G25: 20:00 | H25: 03:00 | I25: 04:59:59.712 | J25: 05:00:00 | K25: 00:42:51.429 | L25: 05:42:51.429 | M25: 10:42:51.429 | N25: 07:20:00 | Q25: 03:22:51.429 | R25: 00:00:00 | U25: Adicional Noturno: | V25: =L39 -> 2.392857143 | X25: 16:00:00 | Y25: 19:00:00 | Z25: 20:00:00 | AA25: 03:00:00
A26: 6 | B26: 2024-01-19 | C26: 2024-01-19 | D26: F | E26: 16:00 | F26: 19:00 | G26: 20:00 | H26: 04:00 | I26: 04:59:59.712 | J26: 06:00:00 | K26: 00:51:25.714 | L26: 06:51:25.714 | M26: 11:51:25.714 | N26: 00:00:00 | Q26: 00:00:00 | R26: 11:51:25.714 | U26: Horas Trabalhadas: | V26: =M39 -> 7.549107143 | X26: 16:00:00 | Y26: 19:00:00 | Z26: 20:00:00 | AA26: 04:00:00
A27: 7 | B27: 2024-01-20 | C27: 2024-01-20 | E27: 16:00 | F27: 19:00 | G27: 20:00 | H27: 22:00 | I27: 04:59:59.712 | J27: 00:00:00 | K27: 00:00:00 | L27: 00:00:00 | M27: 05:00:00 | N27: 07:20:00 | P27: 02:20:00 | Q27: 00:00:00 | R27: 00:00:00 | U27: Ausências Injustificadas: | V27: =O39 -> 0.4880952381 | X27: 16:00:00 | Y27: 19:00:00 | Z27: 20:00:00 | AA27: 22:00:00
A28: 1 | B28: 2024-01-21 | C28: 2024-01-21 | E28: 17:00 | F28: 20:00 | G28: 24:00 | H28: 05:00 | I28: 03:00:00 | J28: 05:00:00 | K28: 00:42:51.429 | L28: 05:42:51.429 | M28: 08:42:51.429 | N28: 07:20:00 | Q28: 01:22:51.429 | R28: 00:00:00 | U28: Horas Compensadas: | V28: =P39 -> 2.358630952 | X28: 17:00:00 | Y28: 20:00:00 | Z28: 00:00:00 | AA28: 05:00:00
A29: 2 | B29: 2024-01-22 | C29: 2024-01-22 | E29: 17:00 | F29: 19:00 | G29: 00:00 | H29: 00:00 | I29: 01:59:59.712 | J29: 00:00:00 | K29: 00:00:00 | L29: 00:00:00 | M29: 02:00:00 | N29: 07:20:00 | P29: 05:20:00 | Q29: 00:00:00 | R29: 00:00:00 | U29: Horas Extras: | V29: =Q39 -> 0.9990079365 | X29: 17:00:00 | Y29: 19:00:00 | Z29: 00:00:00 | AA29: 00:00:00
A30: 3 | B30: 2024-01-23 | C30: 2024-01-23 | E30: 00:00 | F30: 00:00 | G30: 00:00 | H30: 00:00 | I30: 00:00:00 | J30: 00:00:00 | K30: 00:00:00 | L30: 00:00:00 | M30: 00:00:00 | N30: 07:20:00 | P30: 07:20:00 | Q30: 00:00:00 | R30: 00:00:00 | U30: Folgas Trabalhadas: | V30: =R39 -> 1.452380952 | X30: 00:00:00 | Y30: 00:00:00 | Z30: 00:00:00 | AA30: 00:00:00
A31: 4 | B31: 2024-01-24 | C31: =IF(B31="","",IF(COUNTIF(fer,B31)>0,"feriado",B31)) -> 2024-01-24 | E31: 17:00 | F31: 19:00 | G31: 20:00 | H31: 23:00 | I31: 04:00:00.288 | J31: 01:00:00 | K31: 00:08:34.286 | L31: 01:08:34.286 | M31: 05:08:34.286 | N31: 07:20:00 | P31: 02:11:25.714 | Q31: 00:00:00 | R31: 00:00:00 | X31: 17:00:00 | Y31: 19:00:00 | Z31: 20:00:00 | AA31: 23:00:00
A32: 5 | B32: 2024-01-25 | C32: 2024-01-25 | D32: F | E32: 17:00 | F32: 19:00 | G32: 20:00 | H32: 07:00 | I32: 06:00:00 | J32: 07:00:00 | K32: 01:00:00 | L32: 08:00:00 | M32: 14:00:00 | N32: 00:00:00 | Q32: 00:00:00 | R32: 14:00:00 | U32: =IF(V28-V29=0,0,(IF(V28-V29<0,"Horas Extras","Horas Compensadas"))) -> Horas Compensadas | V32: =IF(V28-V29<0,(V28*-1)-(V29*-1),V28-V29) -> 1.359623016 | X32: 17:00:00 | Y32: 19:00:00 | Z32: 20:00:00 | AA32: 07:00:00
A33: 6 | B33: 2024-01-26 | C33: 2024-01-26 | E33: 00:00 | F33: 00:00 | G33: 00:00 | H33: 00:00 | I33: 00:00:00 | J33: 00:00:00 | K33: 00:00:00 | L33: 00:00:00 | M33: 00:00:00 | N33: 07:20:00 | P33: 07:20:00 | Q33: 00:00:00 | R33: 00:00:00 | X33: 00:00:00 | Y33: 00:00:00 | Z33: 00:00:00 | AA33: 00:00:00
A34: 7 | B34: 2024-01-27 | C34: 2024-01-27 | D34: A | E34: 18:00 | F34: 22:00 | G34: 23:00 | H34: 01:00 | I34: 04:00:00.288 | J34: 02:00:00 | K34: 00:17:08.571 | L34: 02:17:08.571 | M34: 06:17:08.571 | N34: 07:20:00 | O34: 01:02:51.429 | Q34: 00:00:00 | R34: 00:00:00 | X34: 18:00:00 | Y34: 22:00:00 | Z34: 23:00:00 | AA34: 01:00:00
A35: 1 | B35: 2024-01-28 | C35: 2024-01-28 | E35: 18:00 | F35: 22:00 | G35: 23:00 | H35: 09:00 | I35: 07:59:59.712 | J35: 06:00:00 | K35: 00:51:25.714 | L35: 06:51:25.714 | M35: 14:51:25.714 | N35: 07:20:00 | Q35: 07:31:25.714 | R35: 00:00:00 | X35: 18:00:00 | Y35: 22:00:00 | Z35: 23:00:00 | AA35: 09:00:00
A36: 2 | B36: =IF(B35="","",IF(B35>=fim,"",B35+1)) -> 2024-01-29 | C36: 2024-01-29 | I36: 00:00:00 | J36: 00:00:00 | K36: 00:00:00 | L36: 00:00:00 | M36: 00:00:00 | N36: 07:20:00 | P36: 07:20:00 | Q36: 00:00:00 | R36: 00:00:00 | X36: 00:00:00 | Y36: 00:00:00 | Z36: 00:00:00 | AA36: 00:00:00
A37: 3 | B37: =IF(B36="","",IF(B36>=fim,"",B36+1)) -> 2024-01-30 | C37: 2024-01-30 | I37: 00:00:00 | J37: 00:00:00 | K37: 00:00:00 | L37: 00:00:00 | M37: 00:00:00 | N37: 07:20:00 | P37: 07:20:00 | Q37: 00:00:00 | R37: 00:00:00 | X37: 00:00:00 | Y37: 00:00:00 | Z37: 00:00:00 | AA37: 00:00:00
A38: 4 | B38: =IF(B37="","",IF(B37>=fim,"",B37+1)) -> 2024-01-31 | C38: 2024-01-31 | I38: 00:00:00 | J38: 00:00:00 | K38: 00:00:00 | L38: 00:00:00 | M38: 00:00:00 | N38: 07:20:00 | P38: 07:20:00 | Q38: 00:00:00 | R38: 00:00:00 | X38: 00:00:00 | Y38: 00:00:00 | Z38: 00:00:00 | AA38: 00:00:00
B39: Início | C39: Término | E39: fer | F39: dom | G39: mês | H39: dias úteis | I39: repousos | J39: dsr | K39: Total: | L39: =SUM(L8:L38) -> 2.392857143 | M39: =SUM(M8:M38) -> 7.549107143 | N39: Total: | O39: =SUM(O8:O38) -> 0.4880952381 | P39: =SUM(P7:P38) -> 2.358630952 | Q39: =SUM(Q7:Q38) -> 0.9990079365 | R39: =SUM(R8:R38) -> 1.452380952
B40: =B8 -> 2024-01-01 | C40: =MAX(B8:B38) -> 2024-01-31 | E40: =COUNTIF(C8:C38,"feriado") -> 1 | F40: =SUMPRODUCT((WEEKDAY(ROW(INDIRECT($B40&":"&$C40)))=1)*(COUNTIF(fer,ROW(INDIRECT($B40&":"&$C40)))=0)) -> 4 | G40: =C40-B40+1 -> 31 | H40: =G40-I40 -> 26 | I40: =E40+F40 -> 5 | J40: =H40&"/"&I40 -> 26/5 | K40: Decimal: | L40: =L39*24 -> 57.43 | M40: =M39*24 -> 181.18 | N40: Decimal: | O40: =O39*24 -> 11.71 | P40: 56.61 | Q40: =Q39*24 -> 23.98 | R40: =R39*24 -> 34.86
B41: =IF(dia_f="","",DATE(ano_p,mês_p,1)) ->  | C41: =IF(dia_f="","",DATE(ano_p,mês_p+1,0)) ->  | E41: =IF(B41="","",SUMPRODUCT(((WEEKDAY(fer)>1))*(fer>=B41)*(fer<=C41))) ->  | F41: =IF(B41="","",SUMPRODUCT((WEEKDAY(ROW(INDIRECT($B41&":"&$C41)))=1)*1)) ->  | G41: =IF(B41="","",DAY(C41)) ->  | H41: =IF(B41="","",SUMPRODUCT((WEEKDAY(ROW(INDIRECT(B41&":"&C41)))>1)*(COUNTIF(fer,ROW(INDIRECT(B41&":"&C41)))=0))) ->  | I41: =IF(B41="","",E41+F41) ->  | J41: =IF(B41="","",H41&"/"&I41) ->  | K41: Dsr: | L41: =L40/$H$40*$I$40 -> 11.04
K42: =IF(B41="","","Dsr mês:") ->  | L42: =IF(B41="","",L40/H41*I41) ->  | M42: =IF(B41="","","Dsr mês:") ->  | Q42: =IF(B41="","",Q40/$H$41*$I$41) ->  | R42: =IF(B41="","",R40/$H$41*$I$41) -> 
U116: =IF(dia_f="",DATE(ano_p,mês_p,1),DATE(ano_p,mês_p-1,dia_f+1)) -> 2024-01-01 | V116: Data de início:
U117: =IF(dia_f="",DATE(ano_p,mês_p+1,0),(DATE($V$22,mês_p,dia_f))) -> 2024-01-31 | V117: Data final:
D119: Meses | F119: Anos
D120: 1 | F120: 2020
D121: 2 | F121: 2021
D122: 3 | F122: 2022
D123: 4 | F123: 2023
D124: 5 | F124: 2024
D125: 6 | F125: 2025
D126: 7 | F126: 2026
D127: 8 | F127: 2027
D128: 9 | F128: 2028
D129: 10 | F129: 2029
D130: 11 | F130: 2030
D131: 12 | F131: 2031

Sheet março
E1: março
B6: Data | C6: Dia Semana | D6: Folgas | E6: Entrada | F6: Saída | G6: Entrada | H6: Saída | I6: Horas Diurnas | J6: H. Not. s/ red. | K6: Hora Ficta | L6: Horas Noturnas | M6: H. Trab. | N6: H. Normais | O6: Ausências In-justificadas | P6: Compen-sadas | Q6: H. Extras | R6: HE 100% | U6: JORNADA CONTRATUAL | X6: CARTÃO PONTO ESPELHO
B7: Saldo anterior | P7: =IF(fevereiro!U32="Horas Compensadas",fevereiro!V32,0) -> 1.359623016 | Q7: =IF(fevereiro!U32="Horas Extras",fevereiro!V32,0) -> 0 | X7: Entrada | Y7: Saída | Z7: Entrada | AA7: Saída
A8: =IF(B8="","",IF(C8<>"feriado",WEEKDAY(B8),8)) -> 5 | B8: =inicio -> 2018-03-01 | C8: =IF(B8="","",IF(COUNTIF(fer,B8)>0,"feriado",B8)) -> 2018-03-01 | E8: 08:00 | F8: 12:00 | G8: 13:00 | H8: 18:00 | I8: =IF(B8="","",ROUND(M8-L8,5)) -> 09:00:00 | J8: =IF(B8="","",IF(AND(E8="",F8="",G8="",H8=""),0,IF(AND(G8="",H8=""),MAX(ININOT,MIN(FIMNOT+1,Y8+(X8>Y8)))-MAX(ININOT,X8)+(MIN(FIMNOT,Y8+(X8>Y8))-MIN(FIMNOT,X8)),MAX(ININOT,MIN(FIMNOT+1,Y8+(X8>Y8)))-MAX(ININOT,X8)+(MIN(FIMNOT,Y8+(X8>Y8))-MIN(FIMNOT,X8))+MAX(ININOT,MIN(FIMNOT+1,AA8+(Z8>AA8)))-MAX(ININOT,Z8)+(MIN(FIMNOT,AA8+(Z8>AA8))-MIN(FIMNOT,Z8))))) -> 00:00:00 | K8: =IF(B8="","",(J8/7*8)-J8) -> 00:00:00 | L8: =IF(B8="","",J8+K8) -> 00:00:00 | M8: =IF(B8="","",MOD((Y8-X8)+(AA8-Z8),1)+K8) -> 09:00:00 | N8: =IF(B8="","",IF(D8="F",$V$16,VLOOKUP(A8,jornada,3))) -> 07:20:00 | O8: =IF(B8="","",IF(AND(D8="A",N8>M8),N8-M8,"")) ->  | P8: =IF(B8="","",IF(AND(M8>0,D8="F"),"",IF(D8="A","",IF(M8<N8,N8-M8,"")))) ->  | Q8: =IF(B8="","",IF(N8=0,0,MAX(0,M8-N8))) -> 01:40:00 | R8: =IF(B8="","",IF(N8=0,M8,0)) -> 00:00:00 | T8: 1 | U8: domingo | V8: 07:20:00 | X8: =IF(B8="","",IF($E8="",0,TIME(INT(E8/100),MOD(E8,100),0))) -> 08:00:00 | Y8: =IF(B8="","",IF($F8="",0,TIME(INT(F8/100),MOD(F8,100),0))) -> 12:00:00 | Z8: =IF(B8="","",IF($G8="",0,TIME(INT(G8/100),MOD(G8,100),0))) -> 13:00:00 | AA8: =IF(B8="","",IF($H8="",0,TIME(INT(H8/100),MOD(H8,100),0))) -> 18:00:00
A9: =IF(B9="","",IF(C9<>"feriado",WEEKDAY(B9),8)) -> 6 | B9: =B8+1 -> 2018-03-02 | C9: =IF(B9="","",IF(COUNTIF(fer,B9)>0,"feriado",B9)) -> 2018-03-02 | E9: 00:00 | F9: 00:00 | G9: 00:00 | H9: 00:00 | I9: =IF(B9="","",ROUND(M9-L9,5)) -> 00:00:00 | J9: 00:00:00 | K9: =IF(B9="","",(J9/7*8)-J9) -> 00:00:00 | L9: =IF(B9="","",J9+K9) -> 00:00:00 | M9: =IF(B9="","",MOD((Y9-X9)+(AA9-Z9),1)+K9) -> 00:00:00 | N9: 07:20:00 | O9: =IF(B9="","",IF(AND(D9="A",N9>M9),N9-M9,"")) ->  | P9: =IF(B9="","",IF(AND(M9>0,D9="F"),"",IF(D9="A","",IF(M9<N9,N9-M9,"")))) -> 07:20:00 | Q9: =IF(B9="","",IF(N9=0,0,MAX(0,M9-N9))) -> 00:00:00 | R9: 00:00:00 | T9: 2 | U9: Segunda-feira | V9: 07:20:00 | X9: =IF(B9="","",IF($E9="",0,TIME(INT(E9/100),MOD(E9,100),0))) -> 00:00:00 | Y9: =IF(B9="","",IF($F9="",0,TIME(INT(F9/100),MOD(F9,100),0))) -> 00:00:00 | Z9: =IF(B9="","",IF($G9="",0,TIME(INT(G9/100),MOD(G9,100),0))) -> 00:00:00 | AA9: =IF(B9="","",IF($H9="",0,TIME(INT(H9/100),MOD(H9,100),0))) -> 00:00:00
A10: 7 | B10: =B9+1 -> 2018-03-03 | C10: 2018-03-03 | E10: 08:00 | F10: 12:00 | G10: 00:00 | H10: 00:00 | I10: 04:00:00.288 | J10: 00:00:00 | K10: 00:00:00 | L10: 00:00:00 | M10: 04:00:00 | N10: 07:20:00 | P10: 03:20:00 | Q10: 00:00:00 | R10: 00:00:00 | T10: 3 | U10: Terça-feira | V10: 07:20:00 | X10: 08:00:00 | Y10: 12:00:00 | Z10: 00:00:00 | AA10: 00:00:00
A11: 1 | B11: =B10+1 -> 2018-03-04 | C11: 2018-03-04 | D11: F | E11: 09:00 | F11: 12:00 | G11: 13:00 | H11: 18:00 | I11: 07:59:59.712 | J11: 00:00:00 | K11: 00:00:00 | L11: 00:00:00 | M11: 08:00:00 | N11: 00:00:00 | Q11: 00:00:00 | R11: 08:00:00 | T11: 4 | U11: Quarta-feira | V11: 07:20:00 | X11: 09:00:00 | Y11: 12:00:00 | Z11: 13:00:00 | AA11: 18:00:00
A12: 2 | B12: =B11+1 -> 2018-03-05 | C12: 2018-03-05 | E12: 09:00 | F12: 13:00 | G12: 13:30 | H12: 16:00 | I12: 06:29:59.712 | J12: 00:00:00 | K12: 00:00:00 | L12: 00:00:00 | M12: 06:30:00 | N12: 07:20:00 | P12: 00:50:00 | Q12: 00:00:00 | R12: 00:00:00 | T12: 5 | U12: Quinta-feira | V12: 07:20:00 | X12: 09:00:00 | Y12: 13:00:00 | Z12: 13:30:00 | AA12: 16:00:00
A13: 3 | B13: =B12+1 -> 2018-03-06 | C13: 2018-03-06 | E13: 10:00 | F13: 14:00 | G13: 15:30 | H13: 20:00 | I13: 08:30:00.288 | J13: 00:00:00 | K13: 00:00:00 | L13: 00:00:00 | M13: 08:30:00 | N13: 07:20:00 | Q13: 01:10:00 | R13: 00:00:00 | T13: 6 | U13: Sexta-feira | V13: 07:20:00 | X13: 10:00:00 | Y13: 14:00:00 | Z13: 15:30:00 | AA13: 20:00:00
A14: 4 | B14: 2018-03-07 | C14: 2018-03-07 | E14: 12:00 | F14: 16:00 | G14: 17:00 | H14: 22:15 | I14: 09:00:00 | J14: 00:15:00 | K14: 00:02:08.571 | L14: 00:17:08.571 | M14: 09:17:08.571 | N14: 07:20:00 | Q14: 01:57:08.571 | R14: 00:00:00 | T14: 7 | U14: Sábado | V14: 07:20:00 | X14: 12:00:00 | Y14: 16:00:00 | Z14: 17:00:00 | AA14: 22:15:00
A15: 5 | B15: 2018-03-08 | C15: 2018-03-08 | D15: F | E15: 00:00 | F15: 00:00 | G15: 00:00 | H15: 00:00 | I15: 00:00:00 | J15: 00:00:00 | K15: 00:00:00 | L15: 00:00:00 | M15: 00:00:00 | N15: 00:00:00 | Q15: 00:00:00 | R15: 00:00:00 | T15: 8 | U15: Feriados | V15: 07:20:00 | X15: 00:00:00 | Y15: 00:00:00 | Z15: 00:00:00 | AA15: 00:00:00
A16: 6 | B16: 2018-03-09 | C16: 2018-03-09 | E16: 10:00 | F16: 14:00 | G16: 14:45 | H16: 17:30 | I16: 06:45:00 | J16: 00:00:00 | K16: 00:00:00 | L16: 00:00:00 | M16: 06:45:00 | N16: 07:20:00 | P16: 00:35:00 | Q16: 00:00:00 | R16: 00:00:00 | U16: Folgas | V16: 00:00:00 | X16: 10:00:00 | Y16: 14:00:00 | Z16: 14:45:00 | AA16: 17:30:00
A17: 7 | B17: 2018-03-10 | C17: 2018-03-10 | E17: 11:00 | F17: 16:00 | G17: 17:00 | H17: 20:00 | I17: 07:59:59.712 | J17: 00:00:00 | K17: 00:00:00 | L17: 00:00:00 | M17: 08:00:00 | N17: 07:20:00 | Q17: 00:40:00 | R17: 00:00:00 | U17: HORÁRIO NOTURNO | X17: 11:00:00 | Y17: 16:00:00 | Z17: 17:00:00 | AA17: 20:00:00
A18: 1 | B18: 2018-03-11 | C18: 2018-03-11 | E18: 19:00 | F18: 21:00 | G18: 22:00 | H18: 05:00 | I18: 01:59:59.712 | J18: 07:00:00 | K18: 01:00:00 | L18: 08:00:00 | M18: 10:00:00 | N18: 07:20:00 | Q18: 02:40:00 | R18: 00:00:00 | U18: Início | V18: 22:00:00 | X18: 19:00:00 | Y18: 21:00:00 | Z18: 22:00:00 | AA18: 05:00:00
A19: 2 | B19: 2018-03-12 | C19: 2018-03-12 | D19: F | E19: 00:00 | F19: 00:00 | G19: 00:00 | H19: 00:00 | I19: 00:00:00 | J19: 00:00:00 | K19: 00:00:00 | L19: 00:00:00 | M19: 00:00:00 | N19: 00:00:00 | Q19: 00:00:00 | R19: 00:00:00 | U19: Término | V19: 05:00:00 | X19: 00:00:00 | Y19: 00:00:00 | Z19: 00:00:00 | AA19: 00:00:00
A20: 3 | B20: 2018-03-13 | C20: 2018-03-13 | E20: 05:00 | F20: 08:00 | G20: 09:00 | H20: 12:00 | I20: 06:00:00 | J20: 00:00:00 | K20: 00:00:00 | L20: 00:00:00 | M20: 06:00:00 | N20: 07:20:00 | P20: 01:20:00 | Q20: 00:00:00 | R20: 00:00:00 | U20: FECHAMENTO DO PONTO | X20: 05:00:00 | Y20: 08:00:00 | Z20: 09:00:00 | AA20: 12:00:00
A21: 4 | B21: 2018-03-14 | C21: 2018-03-14 | E21: 20:00 | F21: 22:00 | G21: 23:00 | H21: 05:00 | I21: 01:59:59.712 | J21: 06:00:00 | K21: 00:51:25.714 | L21: 06:51:25.714 | M21: 08:51:25.714 | N21: 07:20:00 | Q21: 01:31:25.714 | R21: 00:00:00 | U21: Dia do fechamento do ponto: | X21: 20:00:00 | Y21: 22:00:00 | Z21: 23:00:00 | AA21: 05:00:00
A22: 5 | B22: 2018-03-15 | C22: 2018-03-15 | E22: 15:00 | F22: 19:00 | G22: 20:00 | H22: 24:00 | I22: 06:00:00 | J22: 02:00:00 | K22: 00:17:08.571 | L22: 02:17:08.571 | M22: 08:17:08.571 | N22: 07:20:00 | Q22: 00:57:08.571 | R22: 00:00:00 | U22: Selecione o ano : | V22: 2018 | X22: 15:00:00 | Y22: 19:00:00 | Z22: 20:00:00 | AA22: 00:00:00
A23: 6 | B23: 2018-03-16 | C23: 2018-03-16 | E23: 15:00 | F23: 19:00 | G23: 20:00 | H23: 01:00 | I23: 06:00:00 | J23: 03:00:00 | K23: 00:25:42.857 | L23: 03:25:42.857 | M23: 09:25:42.857 | N23: 07:20:00 | Q23: 02:05:42.857 | R23: 00:00:00 | U23: Selecione o mês : | V23: 3 | X23: 15:00:00 | Y23: 19:00:00 | Z23: 20:00:00 | AA23: 01:00:00
A24: 7 | B24: 2018-03-17 | C24: 2018-03-17 | E24: 15:00 | F24: 19:00 | G24: 20:00 | H24: 03:00 | I24: 06:00:00 | J24: 05:00:00 | K24: 00:42:51.429 | L24: 05:42:51.429 | M24: 11:42:51.429 | N24: 07:20:00 | Q24: 04:22:51.429 | R24: 00:00:00 | X24: 15:00:00 | Y24: 19:00:00 | Z24: 20:00:00 | AA24: 03:00:00
A25: 1 | B25: 2018-03-18 | C25: 2018-03-18 | E25: 16:00 | F25: 19:00 | G25: 20:00 | H25: 03:00 | I25: 04:59:59.712 | J25: 05:00:00 | K25: 00:42:51.429 | L25: 05:42:51.429 | M25: 10:42:51.429 | N25: 07:20:00 | Q25: 03:22:51.429 | R25: 00:00:00 | U25: Adicional Noturno: | V25: =L39 -> 3.80952381 | X25: 16:00:00 | Y25: 19:00:00 | Z25: 20:00:00 | AA25: 03:00:00
A26: 2 | B26: 2018-03-19 | C26: 2018-03-19 | D26: F | E26: 16:00 | F26: 19:00 | G26: 20:00 | H26: 04:00 | I26: 04:59:59.712 | J26: 06:00:00 | K26: 00:51:25.714 | L26: 06:51:25.714 | M26: 11:51:25.714 | N26: 00:00:00 | Q26: 00:00:00 | R26: 11:51:25.714 | U26: Horas Trabalhadas: | V26: =M39 -> 10.27827381 | X26: 16:00:00 | Y26: 19:00:00 | Z26: 20:00:00 | AA26: 04:00:00
A27: 3 | B27: 2018-03-20 | C27: 2018-03-20 | E27: 16:00 | F27: 19:00 | G27: 20:00 | H27: 22:00 | I27: 04:59:59.712 | J27: 00:00:00 | K27: 00:00:00 | L27: 00:00:00 | M27: 05:00:00 | N27: 07:20:00 | P27: 02:20:00 | Q27: 00:00:00 | R27: 00:00:00 | U27: Ausências Injustificadas: | V27: =O39 -> 0 | X27: 16:00:00 | Y27: 19:00:00 | Z27: 20:00:00 | AA27: 22:00:00
A28: 4 | B28: 2018-03-21 | C28: 2018-03-21 | E28: 17:00 | F28: 20:00 | G28: 24:00 | H28: 05:00 | I28: 03:00:00 | J28: 05:00:00 | K28: 00:42:51.429 | L28: 05:42:51.429 | M28: 08:42:51.429 | N28: 07:20:00 | Q28: 01:22:51.429 | R28: 00:00:00 | U28: Horas Compensadas: | V28: =P39 -> 2.373015873 | X28: 17:00:00 | Y28: 20:00:00 | Z28: 00:00:00 | AA28: 05:00:00
A29: 5 | B29: 2018-03-22 | C29: 2018-03-22 | E29: 17:00 | F29: 19:00 | G29: 00:00 | H29: 00:00 | I29: 01:59:59.712 | J29: 00:00:00 | K29: 00:00:00 | L29: 00:00:00 | M29: 02:00:00 | N29: 07:20:00 | P29: 05:20:00 | Q29: 00:00:00 | R29: 00:00:00 | U29: Horas Extras: | V29: =Q39 -> 1.617063492 | X29: 17:00:00 | Y29: 19:00:00 | Z29: 00:00:00 | AA29: 00:00:00
A30: 6 | B30: 2018-03-23 | C30: 2018-03-23 | E30: 17:30 | F30: 19:00 | G30: 20:00 | H30: 02:00 | I30: 03:29:59.712 | J30: 04:00:00 | K30: 00:34:17.143 | L30: 04:34:17.143 | M30: 08:04:17.143 | N30: 07:20:00 | Q30: 00:44:17.143 | R30: 00:00:00 | U30: Folgas Trabalhadas: | V30: =R39 -> 2.035714286 | X30: 17:30:00 | Y30: 19:00:00 | Z30: 20:00:00 | AA30: 02:00:00
A31: 7 | B31: 2018-03-24 | C31: =IF(B31="","",IF(COUNTIF(fer,B31)>0,"feriado",B31)) -> 2018-03-24 | E31: 17:00 | F31: 19:00 | G31: 20:00 | H31: 23:00 | I31: 04:00:00.288 | J31: 01:00:00 | K31: 00:08:34.286 | L31: 01:08:34.286 | M31: 05:08:34.286 | N31: 07:20:00 | P31: 02:11:25.714 | Q31: 00:00:00 | R31: 00:00:00 | X31: 17:00:00 | Y31: 19:00:00 | Z31: 20:00:00 | AA31: 23:00:00
A32: 1 | B32: 2018-03-25 | C32: 2018-03-25 | D32: F | E32: 17:00 | F32: 19:00 | G32: 20:00 | H32: 07:00 | I32: 06:00:00 | J32: 07:00:00 | K32: 01:00:00 | L32: 08:00:00 | M32: 14:00:00 | N32: 00:00:00 | Q32: 00:00:00 | R32: 14:00:00 | U32: =IF(V28-V29=0,0,(IF(V28-V29<0,"Horas Extras","Horas Compensadas"))) -> Horas Compensadas | V32: =IF(V28-V29<0,(V28*-1)-(V29*-1),V28-V29) -> 0.755952381 | X32: 17:00:00 | Y32: 19:00:00 | Z32: 20:00:00 | AA32: 07:00:00
A33: 2 | B33: 2018-03-26 | C33: 2018-03-26 | E33: 15:00 | F33: 19:00 | G33: 20:00 | H33: 01:00 | I33: 06:00:00 | J33: 03:00:00 | K33: 00:25:42.857 | L33: 03:25:42.857 | M33: 09:25:42.857 | N33: 07:20:00 | Q33: 02:05:42.857 | R33: 00:00:00 | X33: 15:00:00 | Y33: 19:00:00 | Z33: 20:00:00 | AA33: 01:00:00
A34: 3 | B34: 2018-03-27 | C34: 2018-03-27 | E34: 18:00 | F34: 22:00 | G34: 23:00 | H34: 01:00 | I34: 04:00:00.288 | J34: 02:00:00 | K34: 00:17:08.571 | L34: 02:17:08.571 | M34: 06:17:08.571 | N34: 07:20:00 | P34: 01:02:51.429 | Q34: 00:00:00 | R34: 00:00:00 | X34: 18:00:00 | Y34: 22:00:00 | Z34: 23:00:00 | AA34: 01:00:00
A35: 4 | B35: 2018-03-28 | C35: 2018-03-28 | E35: 18:00 | F35: 22:00 | G35: 23:00 | H35: 07:00 | I35: 06:00:00 | J35: 06:00:00 | K35: 00:51:25.714 | L35: 06:51:25.714 | M35: 12:51:25.714 | N35: 07:20:00 | Q35: 05:31:25.714 | R35: 00:00:00 | X35: 18:00:00 | Y35: 22:00:00 | Z35: 23:00:00 | AA35: 07:00:00
A36: 5 | B36: =IF(B35="","",IF(B35>=fim,"",B35+1)) -> 2018-03-29 | C36: 2018-03-29 | E36: 18:00 | F36: 22:00 | G36: 22:15 | H36: 08:00 | I36: 07:00:00.288 | J36: 06:45:00 | K36: 00:57:51.429 | L36: 07:42:51.429 | M36: 14:42:51.429 | N36: 07:20:00 | Q36: 07:22:51.429 | R36: 00:00:00 | X36: 18:00:00 | Y36: 22:00:00 | Z36: 22:15:00 | AA36: 08:00:00
A37: 6 | B37: =IF(B36="","",IF(B36>=fim,"",B36+1)) -> 2018-03-30 | C37: 2018-03-30 | D37: F | E37: 18:00 | F37: 22:00 | G37: 22:00 | H37: 08:00 | I37: 07:00:00.288 | J37: 07:00:00 | K37: 01:00:00 | L37: 08:00:00 | M37: 15:00:00 | N37: 00:00:00 | Q37: 00:00:00 | R37: 15:00:00 | X37: 18:00:00 | Y37: 22:00:00 | Z37: 22:00:00 | AA37: 08:00:00
A38: 7 | B38: =IF(B37="","",IF(B37>=fim,"",B37+1)) -> 2018-03-31 | C38: 2018-03-31 | E38: 17:00 | F38: 20:00 | G38: 21:00 | H38: 02:00 | I38: 04:00:00.288 | J38: 04:00:00 | K38: 00:34:17.143 | L38: 04:34:17.143 | M38: 08:34:17.143 | N38: 07:20:00 | Q38: 01:14:17.143 | R38: 00:00:00 | X38: 17:00:00 | Y38: 20:00:00 | Z38: 21:00:00 | AA38: 02:00:00
B39: Início | C39: Término | E39: fer | F39: dom | G39: mês | H39: dias úteis | I39: repousos | J39: dsr | K39: Total: | L39: =SUM(L8:L38) -> 3.80952381 | M39: =SUM(M8:M38) -> 10.27827381 | N39: Total: | O39: =SUM(O8:O38) -> 0 | P39: =SUM(P7:P38) -> 2.373015873 | Q39: =SUM(Q7:Q38) -> 1.617063492 | R39: =SUM(R8:R38) -> 2.035714286
B40: =B8 -> 2018-03-01 | C40: =MAX(B8:B38) -> 2018-03-31 | E40: =COUNTIF(C8:C38,"feriado") -> 0 | F40: =SUMPRODUCT((WEEKDAY(ROW(INDIRECT($B40&":"&$C40)))=1)*(COUNTIF(fer,ROW(INDIRECT($B40&":"&$C40)))=0)) -> 4 | G40: =C40-B40+1 -> 31 | H40: =G40-I40 -> 27 | I40: =E40+F40 -> 4 | J40: =H40&"/"&I40 -> 27/4 | K40: Decimal: | L40: =L39*24 -> 91.43 | M40: =M39*24 -> 246.68 | N40: Decimal: | O40: =O39*24 -> 0.00 | P40: 56.95 | Q40: =Q39*24 -> 38.81 | R40: =R39*24 -> 48.86
B41: =IF(dia_f="","",DATE(ano_p,mês_p,1)) ->  | C41: =IF(dia_f="","",DATE(ano_p,mês_p+1,0)) ->  | E41: =IF(B41="","",SUMPRODUCT(((WEEKDAY(fer)>1))*(fer>=B41)*(fer<=C41))) ->  | F41: =IF(B41="","",SUMPRODUCT((WEEKDAY(ROW(INDIRECT($B41&":"&$C41)))=1)*1)) ->  | G41: =IF(B41="","",DAY(C41)) ->  | H41: =IF(B41="","",SUMPRODUCT((WEEKDAY(ROW(INDIRECT(B41&":"&C41)))>1)*(COUNTIF(fer,ROW(INDIRECT(B41&":"&C41)))=0))) ->  | I41: =IF(B41="","",E41+F41) ->  | J41: =IF(B41="","",H41&"/"&I41) ->  | K41: Dsr: | L41: =L40/$H$40*$I$40 -> 13.54
K42: =IF(B41="","","Dsr mês:") ->  | L42: =IF(B41="","",L40/H41*I41) ->  | M42: =IF(B41="","","Dsr mês:") ->  | Q42: =IF(B41="","",Q40/$H$41*$I$41) ->  | R42: =IF(B41="","",R40/$H$41*$I$41) -> 
U116: =IF(dia_f="",DATE(ano_p,mês_p,1),DATE(ano_p,mês_p-1,dia_f+1)) -> 2018-03-01 | V116: Data de início:
U117: =IF(dia_f="",DATE(ano_p,mês_p+1,0),(DATE($V$22,mês_p,dia_f))) -> 2018-03-31 | V117: Data final:
D119: Meses | F119: Anos
D120: 1 | F120: 2020
D121: 2 | F121: 2021
D122: 3 | F122: 2022
D123: 4 | F123: 2023
D124: 5 | F124: 2024
D125: 6 | F125: 2025
D126: 7 | F126: 2026
D127: 8 | F127: 2027
D128: 9 | F128: 2028
D129: 10 | F129: 2029
D130: 11 | F130: 2030
D131: 12 | F131: 2031

Sheet abril
E1: abril
B6: Data | C6: Dia Semana | D6: Folgas | E6: Entrada | F6: Saída | G6: Entrada | H6: Saída | I6: Horas Diurnas | J6: H. Not. s/ red. | K6: Hora Ficta | L6: Horas Noturnas | M6: H. Trab. | N6: H. Normais | O6: Ausências In-justificadas | P6: Compen-sadas | Q6: H. Extras | R6: HE 100% | U6: JORNADA CONTRATUAL | X6: CARTÃO PONTO ESPELHO
B7: Saldo anterior | P7: =IF(março!U32="Horas Compensadas",março!V32,0) -> 0.755952381 | Q7: =IF(março!U32="Horas Extras",março!V32,0) -> 0 | X7: Entrada | Y7: Saída | Z7: Entrada | AA7: Saída
A8: =IF(B8="","",IF(C8<>"feriado",WEEKDAY(B8),8)) -> 1 | B8: =inicio -> 2018-04-01 | C8: =IF(B8="","",IF(COUNTIF(fer,B8)>0,"feriado",B8)) -> 2018-04-01 | D8: F | E8: 08:00 | F8: 12:00 | G8: 13:00 | H8: 18:00 | I8: =IF(B8="","",ROUND(M8-L8,5)) -> 09:00:00 | J8: =IF(B8="","",IF(AND(E8="",F8="",G8="",H8=""),0,IF(AND(G8="",H8=""),MAX(ININOT,MIN(FIMNOT+1,Y8+(X8>Y8)))-MAX(ININOT,X8)+(MIN(FIMNOT,Y8+(X8>Y8))-MIN(FIMNOT,X8)),MAX(ININOT,MIN(FIMNOT+1,Y8+(X8>Y8)))-MAX(ININOT,X8)+(MIN(FIMNOT,Y8+(X8>Y8))-MIN(FIMNOT,X8))+MAX(ININOT,MIN(FIMNOT+1,AA8+(Z8>AA8)))-MAX(ININOT,Z8)+(MIN(FIMNOT,AA8+(Z8>AA8))-MIN(FIMNOT,Z8))))) -> 00:00:00 | K8: =IF(B8="","",(J8/7*8)-J8) -> 00:00:00 | L8: =IF(B8="","",J8+K8) -> 00:00:00 | M8: =IF(B8="","",MOD((Y8-X8)+(AA8-Z8),1)+K8) -> 09:00:00 | N8: =IF(B8="","",IF(D8="F",$V$16,VLOOKUP(A8,jornada,3))) -> 00:00:00 | O8: =IF(B8="","",IF(AND(D8="A",N8>M8),N8-M8,"")) ->  | P8: =IF(B8="","",IF(AND(M8>0,D8="F"),"",IF(D8="A","",IF(M8<N8,N8-M8,"")))) ->  | Q8: =IF(B8="","",IF(N8=0,0,MAX(0,M8-N8))) -> 00:00:00 | R8: =IF(B8="","",IF(N8=0,M8,0)) -> 09:00:00 | T8: 1 | U8: domingo | V8: 07:20:00 | X8: =IF(B8="","",IF($E8="",0,TIME(INT(E8/100),MOD(E8,100),0))) -> 08:00:00 | Y8: =IF(B8="","",IF($F8="",0,TIME(INT(F8/100),MOD(F8,100),0))) -> 12:00:00 | Z8: =IF(B8="","",IF($G8="",0,TIME(INT(G8/100),MOD(G8,100),0))) -> 13:00:00 | AA8: =IF(B8="","",IF($H8="",0,TIME(INT(H8/100),MOD(H8,100),0))) -> 18:00:00
A9: =IF(B9="","",IF(C9<>"feriado",WEEKDAY(B9),8)) -> 2 | B9: =B8+1 -> 2018-04-02 | C9: =IF(B9="","",IF(COUNTIF(fer,B9)>0,"feriado",B9)) -> 2018-04-02 | D9: A | E9: 00:00 | F9: 00:00 | G9: 00:00 | H9: 00:00 | I9: =IF(B9="","",ROUND(M9-L9,5)) -> 00:00:00 | J9: 00:00:00 | K9: =IF(B9="","",(J9/7*8)-J9) -> 00:00:00 | L9: =IF(B9="","",J9+K9) -> 00:00:00 | M9: =IF(B9="","",MOD((Y9-X9)+(AA9-Z9),1)+K9) -> 00:00:00 | N9: 07:20:00 | O9: =IF(B9="","",IF(AND(D9="A",N9>M9),N9-M9,"")) -> 07:20:00 | P9: =IF(B9="","",IF(AND(M9>0,D9="F"),"",IF(D9="A","",IF(M9<N9,N9-M9,"")))) ->  | Q9: =IF(B9="","",IF(N9=0,0,MAX(0,M9-N9))) -> 00:00:00 | R9: 00:00:00 | T9: 2 | U9: Segunda-feira | V9: 07:20:00 | X9: =IF(B9="","",IF($E9="",0,TIME(INT(E9/100),MOD(E9,100),0))) -> 00:00:00 | Y9: =IF(B9="","",IF($F9="",0,TIME(INT(F9/100),MOD(F9,100),0))) -> 00:00:00 | Z9: =IF(B9="","",IF($G9="",0,TIME(INT(G9/100),MOD(G9,100),0))) -> 00:00:00 | AA9: =IF(B9="","",IF($H9="",0,TIME(INT(H9/100),MOD(H9,100),0))) -> 00:00:00
A10: 3 | B10: =B9+1 -> 2018-04-03 | C10: 2018-04-03 | E10: 08:00 | F10: 12:00 | G10: 00:00 | H10: 00:00 | I10: 04:00:00.288 | J10: 00:00:00 | K10: 00:00:00 | L10: 00:00:00 | M10: 04:00:00 | N10: 07:20:00 | P10: 03:20:00 | Q10: 00:00:00 | R10: 00:00:00 | T10: 3 | U10: Terça-feira | V10: 07:20:00 | X10: 08:00:00 | Y10: 12:00:00 | Z10: 00:00:00 | AA10: 00:00:00
A11: 4 | B11: =B10+1 -> 2018-04-04 | C11: 2018-04-04 | E11: 09:00 | F11: 12:00 | G11: 13:00 | H11: 18:00 | I11: 07:59:59.712 | J11: 00:00:00 | K11: 00:00:00 | L11: 00:00:00 | M11: 08:00:00 | N11: 07:20:00 | Q11: 00:40:00 | R11: 00:00:00 | T11: 4 | U11: Quarta-feira | V11: 07:20:00 | X11: 09:00:00 | Y11: 12:00:00 | Z11: 13:00:00 | AA11: 18:00:00
A12: 5 | B12: =B11+1 -> 2018-04-05 | C12: 2018-04-05 | E12: 09:00 | F12: 13:00 | G12: 13:30 | H12: 16:00 | I12: 06:29:59.712 | J12: 00:00:00 | K12: 00:00:00 | L12: 00:00:00 | M12: 06:30:00 | N12: 07:20:00 | P12: 00:50:00 | Q12: 00:00:00 | R12: 00:00:00 | T12: 5 | U12: Quinta-feira | V12: 07:20:00 | X12: 09:00:00 | Y12: 13:00:00 | Z12: 13:30:00 | AA12: 16:00:00
A13: 6 | B13: =B12+1 -> 2018-04-06 | C13: 2018-04-06 | E13: 10:00 | F13: 14:00 | G13: 15:30 | H13: 20:00 | I13: 08:30:00.288 | J13: 00:00:00 | K13: 00:00:00 | L13: 00:00:00 | M13: 08:30:00 | N13: 07:20:00 | Q13: 01:10:00 | R13: 00:00:00 | T13: 6 | U13: Sexta-feira | V13: 07:20:00 | X13: 10:00:00 | Y13: 14:00:00 | Z13: 15:30:00 | AA13: 20:00:00
A14: 7 | B14: 2018-04-07 | C14: 2018-04-07 | E14: 12:00 | F14: 16:00 | G14: 17:00 | H14: 22:15 | I14: 09:00:00 | J14: 00:15:00 | K14: 00:02:08.571 | L14: 00:17:08.571 | M14: 09:17:08.571 | N14: 07:20:00 | Q14: 01:57:08.571 | R14: 00:00:00 | T14: 7 | U14: Sábado | V14: 07:20:00 | X14: 12:00:00 | Y14: 16:00:00 | Z14: 17:00:00 | AA14: 22:15:00
A15: 1 | B15: 2018-04-08 | C15: 2018-04-08 | D15: F | E15: 00:00 | F15: 00:00 | G15: 00:00 | H15: 00:00 | I15: 00:00:00 | J15: 00:00:00 | K15: 00:00:00 | L15: 00:00:00 | M15: 00:00:00 | N15: 00:00:00 | Q15: 00:00:00 | R15: 00:00:00 | T15: 8 | U15: Feriados | V15: 07:20:00 | X15: 00:00:00 | Y15: 00:00:00 | Z15: 00:00:00 | AA15: 00:00:00
A16: 2 | B16: 2018-04-09 | C16: 2018-04-09 | E16: 10:00 | F16: 14:00 | G16: 14:45 | H16: 17:30 | I16: 06:45:00 | J16: 00:00:00 | K16: 00:00:00 | L16: 00:00:00 | M16: 06:45:00 | N16: 07:20:00 | P16: 00:35:00 | Q16: 00:00:00 | R16: 00:00:00 | U16: Folgas | V16: 00:00:00 | X16: 10:00:00 | Y16: 14:00:00 | Z16: 14:45:00 | AA16: 17:30:00
A17: 3 | B17: 2018-04-10 | C17: 2018-04-10 | E17: 11:00 | F17: 16:00 | G17: 17:00 | H17: 20:00 | I17: 07:59:59.712 | J17: 00:00:00 | K17: 00:00:00 | L17: 00:00:00 | M17: 08:00:00 | N17: 07:20:00 | Q17: 00:40:00 | R17: 00:00:00 | U17: HORÁRIO NOTURNO | X17: 11:00:00 | Y17: 16:00:00 | Z17: 17:00:00 | AA17: 20:00:00
A18: 4 | B18: 2018-04-11 | C18: 2018-04-11 | E18: 19:00 | F18: 21:00 | G18: 22:00 | H18: 05:00 | I18: 01:59:59.712 | J18: 07:00:00 | K18: 01:00:00 | L18: 08:00:00 | M18: 10:00:00 | N18: 07:20:00 | Q18: 02:40:00 | R18: 00:00:00 | U18: Início | V18: 22:00:00 | X18: 19:00:00 | Y18: 21:00:00 | Z18: 22:00:00 | AA18: 05:00:00
A19: 5 | B19: 2018-04-12 | C19: 2018-04-12 | D19: F | E19: 00:00 | F19: 00:00 | G19: 00:00 | H19: 00:00 | I19: 00:00:00 | J19: 00:00:00 | K19: 00:00:00 | L19: 00:00:00 | M19: 00:00:00 | N19: 00:00:00 | Q19: 00:00:00 | R19: 00:00:00 | U19: Término | V19: 05:00:00 | X19: 00:00:00 | Y19: 00:00:00 | Z19: 00:00:00 | AA19: 00:00:00
A20: 6 | B20: 2018-04-13 | C20: 2018-04-13 | E20: 05:00 | F20: 08:00 | G20: 09:00 | H20: 12:00 | I20: 06:00:00 | J20: 00:00:00 | K20: 00:00:00 | L20: 00:00:00 | M20: 06:00:00 | N20: 07:20:00 | P20: 01:20:00 | Q20: 00:00:00 | R20: 00:00:00 | U20: FECHAMENTO DO PONTO | X20: 05:00:00 | Y20: 08:00:00 | Z20: 09:00:00 | AA20: 12:00:00
A21: 7 | B21: 2018-04-14 | C21: 2018-04-14 | E21: 20:00 | F21: 22:00 | G21: 23:00 | H21: 05:00 | I21: 01:59:59.712 | J21: 06:00:00 | K21: 00:51:25.714 | L21: 06:51:25.714 | M21: 08:51:25.714 | N21: 07:20:00 | Q21: 01:31:25.714 | R21: 00:00:00 | U21: Dia do fechamento do ponto: | X21: 20:00:00 | Y21: 22:00:00 | Z21: 23:00:00 | AA21: 05:00:00
A22: 1 | B22: 2018-04-15 | C22: 2018-04-15 | E22: 15:00 | F22: 19:00 | G22: 20:00 | H22: 24:00 | I22: 06:00:00 | J22: 02:00:00 | K22: 00:17:08.571 | L22: 02:17:08.571 | M22: 08:17:08.571 | N22: 07:20:00 | Q22: 00:57:08.571 | R22: 00:00:00 | U22: Selecione o ano : | V22: 2018 | X22: 15:00:00 | Y22: 19:00:00 | Z22: 20:00:00 | AA22: 00:00:00
A23: 2 | B23: 2018-04-16 | C23: 2018-04-16 | E23: 15:00 | F23: 19:00 | G23: 20:00 | H23: 01:00 | I23: 06:00:00 | J23: 03:00:00 | K23: 00:25:42.857 | L23: 03:25:42.857 | M23: 09:25:42.857 | N23: 07:20:00 | Q23: 02:05:42.857 | R23: 00:00:00 | U23: Selecione o mês : | V23: 4 | X23: 15:00:00 | Y23: 19:00:00 | Z23: 20:00:00 | AA23: 01:00:00
A24: 3 | B24: 2018-04-17 | C24: 2018-04-17 | E24: 00:00 | F24: 00:00 | G24: 00:00 | H24: 00:00 | I24: 00:00:00 | J24: 00:00:00 | K24: 00:00:00 | L24: 00:00:00 | M24: 00:00:00 | N24: 07:20:00 | P24: 07:20:00 | Q24: 00:00:00 | R24: 00:00:00 | X24: 00:00:00 | Y24: 00:00:00 | Z24: 00:00:00 | AA24: 00:00:00
A25: 4 | B25: 2018-04-18 | C25: 2018-04-18 | E25: 16:00 | F25: 19:00 | G25: 20:00 | H25: 03:00 | I25: 04:59:59.712 | J25: 05:00:00 | K25: 00:42:51.429 | L25: 05:42:51.429 | M25: 10:42:51.429 | N25: 07:20:00 | Q25: 03:22:51.429 | R25: 00:00:00 | U25: Adicional Noturno: | V25: =L39 -> 3.238095238 | X25: 16:00:00 | Y25: 19:00:00 | Z25: 20:00:00 | AA25: 03:00:00
A26: 5 | B26: 2018-04-19 | C26: 2018-04-19 | D26: F | E26: 16:00 | F26: 19:00 | G26: 20:00 | H26: 04:00 | I26: 04:59:59.712 | J26: 06:00:00 | K26: 00:51:25.714 | L26: 06:51:25.714 | M26: 11:51:25.714 | N26: 00:00:00 | Q26: 00:00:00 | R26: 11:51:25.714 | U26: Horas Trabalhadas: | V26: =M39 -> 9.186011905 | X26: 16:00:00 | Y26: 19:00:00 | Z26: 20:00:00 | AA26: 04:00:00
A27: 6 | B27: 2018-04-20 | C27: 2018-04-20 | E27: 16:00 | F27: 19:00 | G27: 20:00 | H27: 23:00 | I27: 04:59:59.712 | J27: 01:00:00 | K27: 00:08:34.286 | L27: 01:08:34.286 | M27: 06:08:34.286 | N27: 07:20:00 | P27: 01:11:25.714 | Q27: 00:00:00 | R27: 00:00:00 | U27: Ausências Injustificadas: | V27: =O39 -> 0.3055555556 | X27: 16:00:00 | Y27: 19:00:00 | Z27: 20:00:00 | AA27: 23:00:00
A28: 7 | B28: 2018-04-21 | C28: 2018-04-21 | E28: 17:00 | F28: 20:00 | G28: 24:00 | H28: 05:00 | I28: 03:00:00 | J28: 05:00:00 | K28: 00:42:51.429 | L28: 05:42:51.429 | M28: 08:42:51.429 | N28: 07:20:00 | Q28: 01:22:51.429 | R28: 00:00:00 | U28: Horas Compensadas: | V28: =P39 -> 2.027281746 | X28: 17:00:00 | Y28: 20:00:00 | Z28: 00:00:00 | AA28: 05:00:00
A29: 1 | B29: 2018-04-22 | C29: 2018-04-22 | E29: 17:00 | F29: 19:00 | G29: 00:00 | H29: 00:00 | I29: 01:59:59.712 | J29: 00:00:00 | K29: 00:00:00 | L29: 00:00:00 | M29: 02:00:00 | N29: 07:20:00 | P29: 05:20:00 | Q29: 00:00:00 | R29: 00:00:00 | U29: Horas Extras: | V29: =Q39 -> 1.35218254 | X29: 17:00:00 | Y29: 19:00:00 | Z29: 00:00:00 | AA29: 00:00:00
A30: 2 | B30: 2018-04-23 | C30: 2018-04-23 | E30: 16:00 | F30: 19:00 | G30: 20:00 | H30: 01:00 | I30: 04:59:59.712 | J30: 03:00:00 | K30: 00:25:42.857 | L30: 03:25:42.857 | M30: 08:25:42.857 | N30: 07:20:00 | Q30: 01:05:42.857 | R30: 00:00:00 | U30: Folgas Trabalhadas: | V30: =R39 -> 2.077380952 | X30: 16:00:00 | Y30: 19:00:00 | Z30: 20:00:00 | AA30: 01:00:00
A31: 3 | B31: 2018-04-24 | C31: =IF(B31="","",IF(COUNTIF(fer,B31)>0,"feriado",B31)) -> 2018-04-24 | E31: 17:00 | F31: 19:00 | G31: 20:00 | H31: 23:00 | I31: 04:00:00.288 | J31: 01:00:00 | K31: 00:08:34.286 | L31: 01:08:34.286 | M31: 05:08:34.286 | N31: 07:20:00 | P31: 02:11:25.714 | Q31: 00:00:00 | R31: 00:00:00 | X31: 17:00:00 | Y31: 19:00:00 | Z31: 20:00:00 | AA31: 23:00:00
A32: 4 | B32: 2018-04-25 | C32: 2018-04-25 | D32: F | E32: 17:00 | F32: 19:00 | G32: 20:00 | H32: 07:00 | I32: 06:00:00 | J32: 07:00:00 | K32: 01:00:00 | L32: 08:00:00 | M32: 14:00:00 | N32: 00:00:00 | Q32: 00:00:00 | R32: 14:00:00 | U32: =IF(V28-V29=0,0,(IF(V28-V29<0,"Horas Extras","Horas Compensadas"))) -> Horas Compensadas | V32: =IF(V28-V29<0,(V28*-1)-(V29*-1),V28-V29) -> 0.6750992063 | X32: 17:00:00 | Y32: 19:00:00 | Z32: 20:00:00 | AA32: 07:00:00
A33: 5 | B33: 2018-04-26 | C33: 2018-04-26 | E33: 00:00 | F33: 00:00 | G33: 00:00 | H33: 00:00 | I33: 00:00:00 | J33: 00:00:00 | K33: 00:00:00 | L33: 00:00:00 | M33: 00:00:00 | N33: 07:20:00 | P33: 07:20:00 | Q33: 00:00:00 | R33: 00:00:00 | X33: 00:00:00 | Y33: 00:00:00 | Z33: 00:00:00 | AA33: 00:00:00
A34: 6 | B34: 2018-04-27 | C34: 2018-04-27 | E34: 18:00 | F34: 22:00 | G34: 23:00 | H34: 01:00 | I34: 04:00:00.288 | J34: 02:00:00 | K34: 00:17:08.571 | L34: 02:17:08.571 | M34: 06:17:08.571 | N34: 07:20:00 | P34: 01:02:51.429 | Q34: 00:00:00 | R34: 00:00:00 | X34: 18:00:00 | Y34: 22:00:00 | Z34: 23:00:00 | AA34: 01:00:00
A35: 7 | B35: 2018-04-28 | C35: 2018-04-28 | E35: 18:00 | F35: 22:00 | G35: 23:00 | H35: 09:00 | I35: 07:59:59.712 | J35: 06:00:00 | K35: 00:51:25.714 | L35: 06:51:25.714 | M35: 14:51:25.714 | N35: 07:20:00 | Q35: 07:31:25.714 | R35: 00:00:00 | X35: 18:00:00 | Y35: 22:00:00 | Z35: 23:00:00 | AA35: 09:00:00
A36: 1 | B36: =IF(B35="","",IF(B35>=fim,"",B35+1)) -> 2018-04-29 | C36: 2018-04-29 | E36: 18:00 | F36: 22:00 | G36: 22:15 | H36: 08:00 | I36: 07:00:00.288 | J36: 06:45:00 | K36: 00:57:51.429 | L36: 07:42:51.429 | M36: 14:42:51.429 | N36: 07:20:00 | Q36: 07:22:51.429 | R36: 00:00:00 | X36: 18:00:00 | Y36: 22:00:00 | Z36: 22:15:00 | AA36: 08:00:00
A37: 2 | B37: =IF(B36="","",IF(B36>=fim,"",B36+1)) -> 2018-04-30 | C37: 2018-04-30 | D37: F | E37: 18:00 | F37: 22:00 | G37: 22:00 | H37: 08:00 | I37: 07:00:00.288 | J37: 07:00:00 | K37: 01:00:00 | L37: 08:00:00 | M37: 15:00:00 | N37: 00:00:00 | Q37: 00:00:00 | R37: 15:00:00 | X37: 18:00:00 | Y37: 22:00:00 | Z37: 22:00:00 | AA37: 08:00:00
B38: =IF(B37="","",IF(B37>=fim,"",B37+1)) -> 
B39: Início | C39: Término | E39: fer | F39: dom | G39: mês | H39: dias úteis | I39: repousos | J39: dsr | K39: Total: | L39: =SUM(L8:L38) -> 3.238095238 | M39: =SUM(M8:M38) -> 9.186011905 | N39: Total: | O39: =SUM(O8:O38) -> 0.3055555556 | P39: =SUM(P7:P38) -> 2.027281746 | Q39: =SUM(Q7:Q38) -> 1.35218254 | R39: =SUM(R8:R38) -> 2.077380952
B40: =B8 -> 2018-04-01 | C40: =MAX(B8:B38) -> 2018-04-30 | E40: =COUNTIF(C8:C38,"feriado") -> 0 | F40: =SUMPRODUCT((WEEKDAY(ROW(INDIRECT($B40&":"&$C40)))=1)*(COUNTIF(fer,ROW(INDIRECT($B40&":"&$C40)))=0)) -> 5 | G40: =C40-B40+1 -> 30 | H40: =G40-I40 -> 25 | I40: =E40+F40 -> 5 | J40: =H40&"/"&I40 -> 25/5 | K40: Decimal: | L40: =L39*24 -> 77.71 | M40: =M39*24 -> 220.46 | N40: Decimal: | O40: =O39*24 -> 7.33 | P40: 48.65 | Q40: =Q39*24 -> 32.45 | R40: =R39*24 -> 49.86
B41: =IF(dia_f="","",DATE(ano_p,mês_p,1)) ->  | C41: =IF(dia_f="","",DATE(ano_p,mês_p+1,0)) ->  | E41: =IF(B41="","",SUMPRODUCT(((WEEKDAY(fer)>1))*(fer>=B41)*(fer<=C41))) ->  | F41: =IF(B41="","",SUMPRODUCT((WEEKDAY(ROW(INDIRECT($B41&":"&$C41)))=1)*1)) ->  | G41: =IF(B41="","",DAY(C41)) ->  | H41: =IF(B41="","",SUMPRODUCT((WEEKDAY(ROW(INDIRECT(B41&":"&C41)))>1)*(COUNTIF(fer,ROW(INDIRECT(B41&":"&C41)))=0))) ->  | I41: =IF(B41="","",E41+F41) ->  | J41: =IF(B41="","",H41&"/"&I41) ->  | K41: Dsr: | L41: =L40/$H$40*$I$40 -> 15.54
K42: =IF(B41="","","Dsr mês:") ->  | L42: =IF(B41="","",L40/H41*I41) ->  | M42: =IF(B41="","","Dsr mês:") ->  | Q42: =IF(B41="","",Q40/$H$41*$I$41) ->  | R42: =IF(B41="","",R40/$H$41*$I$41) -> 
U116: =IF(dia_f="",DATE(ano_p,mês_p,1),DATE(ano_p,mês_p-1,dia_f+1)) -> 2018-04-01 | V116: Data de início:
U117: =IF(dia_f="",DATE(ano_p,mês_p+1,0),(DATE($V$22,mês_p,dia_f))) -> 2018-04-30 | V117: Data final:
D119: Meses | F119: Anos
D120: 1 | F120: 2020
D121: 2 | F121: 2021
D122: 3 | F122: 2022
D123: 4 | F123: 2023
D124: 5 | F124: 2024
D125: 6 | F125: 2025
D126: 7 | F126: 2026
D127: 8 | F127: 2027
D128: 9 | F128: 2028
D129: 10 | F129: 2029
D130: 11 | F130: 2030
D131: 12 | F131: 2031

Sheet maio
E1: maio
B6: Data | C6: Dia Semana | D6: Folgas | E6: Entrada | F6: Saída | G6: Entrada | H6: Saída | I6: Horas Diurnas | J6: H. Not. s/ red. | K6: Hora Ficta | L6: Horas Noturnas | M6: H. Trab. | N6: H. Normais | O6: Ausências In-justificadas | P6: Compen-sadas | Q6: H. Extras | R6: HE 100% | U6: JORNADA CONTRATUAL | X6: CARTÃO PONTO ESPELHO
B7: Saldo anterior | P7: =IF(abril!U32="Horas Compensadas",abril!V32,0) -> 0.6750992063 | Q7: =IF(abril!U32="Horas Extras",abril!V32,0) -> 0 | X7: Entrada | Y7: Saída | Z7: Entrada | AA7: Saída
A8: =IF(B8="","",IF(C8<>"feriado",WEEKDAY(B8),8)) -> 3 | B8: =inicio -> 2018-05-01 | C8: =IF(B8="","",IF(COUNTIF(fer,B8)>0,"feriado",B8)) -> 2018-05-01 | D8: F | E8: 08:00 | F8: 12:00 | G8: 13:00 | H8: 18:00 | I8: =IF(B8="","",ROUND(M8-L8,5)) -> 09:00:00 | J8: =IF(B8="","",IF(AND(E8="",F8="",G8="",H8=""),0,IF(AND(G8="",H8=""),MAX(ININOT,MIN(FIMNOT+1,Y8+(X8>Y8)))-MAX(ININOT,X8)+(MIN(FIMNOT,Y8+(X8>Y8))-MIN(FIMNOT,X8)),MAX(ININOT,MIN(FIMNOT+1,Y8+(X8>Y8)))-MAX(ININOT,X8)+(MIN(FIMNOT,Y8+(X8>Y8))-MIN(FIMNOT,X8))+MAX(ININOT,MIN(FIMNOT+1,AA8+(Z8>AA8)))-MAX(ININOT,Z8)+(MIN(FIMNOT,AA8+(Z8>AA8))-MIN(FIMNOT,Z8))))) -> 00:00:00 | K8: =IF(B8="","",(J8/7*8)-J8) -> 00:00:00 | L8: =IF(B8="","",J8+K8) -> 00:00:00 | M8: =IF(B8="","",MOD((Y8-X8)+(AA8-Z8),1)+K8) -> 09:00:00 | N8: =IF(B8="","",IF(D8="F",$V$16,VLOOKUP(A8,jornada,3))) -> 00:00:00 | O8: =IF(B8="","",IF(AND(D8="A",N8>M8),N8-M8,"")) ->  | P8: =IF(B8="","",IF(AND(M8>0,D8="F"),"",IF(D8="A","",IF(M8<N8,N8-M8,"")))) ->  | Q8: =IF(B8="","",IF(N8=0,0,MAX(0,M8-N8))) -> 00:00:00 | R8: =IF(B8="","",IF(N8=0,M8,0)) -> 09:00:00 | T8: 1 | U8: domingo | V8: 07:20:00 | X8: =IF(B8="","",IF($E8="",0,TIME(INT(E8/100),MOD(E8,100),0))) -> 08:00:00 | Y8: =IF(B8="","",IF($F8="",0,TIME(INT(F8/100),MOD(F8,100),0))) -> 12:00:00 | Z8: =IF(B8="","",IF($G8="",0,TIME(INT(G8/100),MOD(G8,100),0))) -> 13:00:00 | AA8: =IF(B8="","",IF($H8="",0,TIME(INT(H8/100),MOD(H8,100),0))) -> 18:00:00
A9: =IF(B9="","",IF(C9<>"feriado",WEEKDAY(B9),8)) -> 4 | B9: =B8+1 -> 2018-05-02 | C9: =IF(B9="","",IF(COUNTIF(fer,B9)>0,"feriado",B9)) -> 2018-05-02 | E9: 08:00 | F9: 12:00 | G9: 13:00 | H9: 20:00 | I9: =IF(B9="","",ROUND(M9-L9,5)) -> 10:59:59.712 | J9: 00:00:00 | K9: =IF(B9="","",(J9/7*8)-J9) -> 00:00:00 | L9: =IF(B9="","",J9+K9) -> 00:00:00 | M9: =IF(B9="","",MOD((Y9-X9)+(AA9-Z9),1)+K9) -> 11:00:00 | N9: 07:20:00 | O9: =IF(B9="","",IF(AND(D9="A",N9>M9),N9-M9,"")) ->  | P9: =IF(B9="","",IF(AND(M9>0,D9="F"),"",IF(D9="A","",IF(M9<N9,N9-M9,"")))) ->  | Q9: =IF(B9="","",IF(N9=0,0,MAX(0,M9-N9))) -> 03:40:00 | R9: 00:00:00 | T9: 2 | U9: Segunda-feira | V9: 07:20:00 | X9: =IF(B9="","",IF($E9="",0,TIME(INT(E9/100),MOD(E9,100),0))) -> 08:00:00 | Y9: =IF(B9="","",IF($F9="",0,TIME(INT(F9/100),MOD(F9,100),0))) -> 12:00:00 | Z9: =IF(B9="","",IF($G9="",0,TIME(INT(G9/100),MOD(G9,100),0))) -> 13:00:00 | AA9: =IF(B9="","",IF($H9="",0,TIME(INT(H9/100),MOD(H9,100),0))) -> 20:00:00
A10: 5 | B10: =B9+1 -> 2018-05-03 | C10: 2018-05-03 | E10: 08:00 | F10: 12:00 | G10: 13:00 | H10: 19:30 | I10: 10:30:00 | J10: 00:00:00 | K10: 00:00:00 | L10: 00:00:00 | M10: 10:30:00 | N10: 07:20:00 | Q10: 03:10:00 | R10: 00:00:00 | T10: 3 | U10: Terça-feira | V10: 07:20:00 | X10: 08:00:00 | Y10: 12:00:00 | Z10: 13:00:00 | AA10: 19:30:00
A11: 6 | B11: =B10+1 -> 2018-05-04 | C11: 2018-05-04 | E11: 09:00 | F11: 12:00 | G11: 13:00 | H11: 18:00 | I11: 07:59:59.712 | J11: 00:00:00 | K11: 00:00:00 | L11: 00:00:00 | M11: 08:00:00 | N11: 07:20:00 | Q11: 00:40:00 | R11: 00:00:00 | T11: 4 | U11: Quarta-feira | V11: 07:20:00 | X11: 09:00:00 | Y11: 12:00:00 | Z11: 13:00:00 | AA11: 18:00:00
A12: 7 | B12: =B11+1 -> 2018-05-05 | C12: 2018-05-05 | E12: 09:00 | F12: 13:00 | G12: 13:30 | H12: 16:00 | I12: 06:29:59.712 | J12: 00:00:00 | K12: 00:00:00 | L12: 00:00:00 | M12: 06:30:00 | N12: 07:20:00 | P12: 00:50:00 | Q12: 00:00:00 | R12: 00:00:00 | T12: 5 | U12: Quinta-feira | V12: 07:20:00 | X12: 09:00:00 | Y12: 13:00:00 | Z12: 13:30:00 | AA12: 16:00:00
A13: 1 | B13: =B12+1 -> 2018-05-06 | C13: 2018-05-06 | D13: F | E13: 10:00 | F13: 14:00 | G13: 15:30 | H13: 20:00 | I13: 08:30:00.288 | J13: 00:00:00 | K13: 00:00:00 | L13: 00:00:00 | M13: 08:30:00 | N13: 00:00:00 | Q13: 00:00:00 | R13: 08:30:00 | T13: 6 | U13: Sexta-feira | V13: 07:20:00 | X13: 10:00:00 | Y13: 14:00:00 | Z13: 15:30:00 | AA13: 20:00:00
A14: 2 | B14: 2018-05-07 | C14: 2018-05-07 | E14: 12:00 | F14: 16:00 | G14: 17:00 | H14: 22:15 | I14: 09:00:00 | J14: 00:15:00 | K14: 00:02:08.571 | L14: 00:17:08.571 | M14: 09:17:08.571 | N14: 07:20:00 | Q14: 01:57:08.571 | R14: 00:00:00 | T14: 7 | U14: Sábado | V14: 07:20:00 | X14: 12:00:00 | Y14: 16:00:00 | Z14: 17:00:00 | AA14: 22:15:00
A15: 3 | B15: 2018-05-08 | C15: 2018-05-08 | E15: 00:00 | F15: 00:00 | G15: 00:00 | H15: 00:00 | I15: 00:00:00 | J15: 00:00:00 | K15: 00:00:00 | L15: 00:00:00 | M15: 00:00:00 | N15: 07:20:00 | P15: 07:20:00 | Q15: 00:00:00 | R15: 00:00:00 | T15: 8 | U15: Feriados | V15: 07:20:00 | X15: 00:00:00 | Y15: 00:00:00 | Z15: 00:00:00 | AA15: 00:00:00
A16: 4 | B16: 2018-05-09 | C16: 2018-05-09 | E16: 10:00 | F16: 14:00 | G16: 14:45 | H16: 17:30 | I16: 06:45:00 | J16: 00:00:00 | K16: 00:00:00 | L16: 00:00:00 | M16: 06:45:00 | N16: 07:20:00 | P16: 00:35:00 | Q16: 00:00:00 | R16: 00:00:00 | U16: Folgas | V16: 00:00:00 | X16: 10:00:00 | Y16: 14:00:00 | Z16: 14:45:00 | AA16: 17:30:00
A17: 5 | B17: 2018-05-10 | C17: 2018-05-10 | E17: 11:00 | F17: 16:00 | G17: 17:00 | H17: 20:00 | I17: 07:59:59.712 | J17: 00:00:00 | K17: 00:00:00 | L17: 00:00:00 | M17: 08:00:00 | N17: 07:20:00 | Q17: 00:40:00 | R17: 00:00:00 | U17: HORÁRIO NOTURNO | X17: 11:00:00 | Y17: 16:00:00 | Z17: 17:00:00 | AA17: 20:00:00
A18: 6 | B18: 2018-05-11 | C18: 2018-05-11 | E18: 19:00 | F18: 21:00 | G18: 22:00 | H18: 05:00 | I18: 01:59:59.712 | J18: 07:00:00 | K18: 01:00:00 | L18: 08:00:00 | M18: 10:00:00 | N18: 07:20:00 | Q18: 02:40:00 | R18: 00:00:00 | U18: Início | V18: 22:00:00 | X18: 19:00:00 | Y18: 21:00:00 | Z18: 22:00:00 | AA18: 05:00:00
A19: 7 | B19: 2018-05-12 | C19: 2018-05-12 | D19: F | E19: 00:00 | F19: 00:00 | G19: 00:00 | H19: 00:00 | I19: 00:00:00 | J19: 00:00:00 | K19: 00:00:00 | L19: 00:00:00 | M19: 00:00:00 | N19: 00:00:00 | Q19: 00:00:00 | R19: 00:00:00 | U19: Término | V19: 05:00:00 | X19: 00:00:00 | Y19: 00:00:00 | Z19: 00:00:00 | AA19: 00:00:00
A20: 1 | B20: 2018-05-13 | C20: 2018-05-13 | E20: 05:00 | F20: 08:00 | G20: 09:00 | H20: 12:00 | I20: 06:00:00 | J20: 00:00:00 | K20: 00:00:00 | L20: 00:00:00 | M20: 06:00:00 | N20: 07:20:00 | P20: 01:20:00 | Q20: 00:00:00 | R20: 00:00:00 | U20: FECHAMENTO DO PONTO | X20: 05:00:00 | Y20: 08:00:00 | Z20: 09:00:00 | AA20: 12:00:00
A21: 2 | B21: 2018-05-14 | C21: 2018-05-14 | E21: 20:00 | F21: 22:00 | G21: 23:00 | H21: 05:00 | I21: 01:59:59.712 | J21: 06:00:00 | K21: 00:51:25.714 | L21: 06:51:25.714 | M21: 08:51:25.714 | N21: 07:20:00 | Q21: 01:31:25.714 | R21: 00:00:00 | U21: Dia do fechamento do ponto: | X21: 20:00:00 | Y21: 22:00:00 | Z21: 23:00:00 | AA21: 05:00:00
A22: 3 | B22: 2018-05-15 | C22: 2018-05-15 | E22: 15:00 | F22: 19:00 | G22: 20:00 | H22: 24:00 | I22: 06:00:00 | J22: 02:00:00 | K22: 00:17:08.571 | L22: 02:17:08.571 | M22: 08:17:08.571 | N22: 07:20:00 | Q22: 00:57:08.571 | R22: 00:00:00 | U22: Selecione o ano : | V22: 2018 | X22: 15:00:00 | Y22: 19:00:00 | Z22: 20:00:00 | AA22: 00:00:00
A23: 4 | B23: 2018-05-16 | C23: 2018-05-16 | E23: 15:00 | F23: 19:00 | G23: 20:00 | H23: 01:00 | I23: 06:00:00 | J23: 03:00:00 | K23: 00:25:42.857 | L23: 03:25:42.857 | M23: 09:25:42.857 | N23: 07:20:00 | Q23: 02:05:42.857 | R23: 00:00:00 | U23: Selecione o mês : | V23: 5 | X23: 15:00:00 | Y23: 19:00:00 | Z23: 20:00:00 | AA23: 01:00:00
A24: 5 | B24: 2018-05-17 | C24: 2018-05-17 | E24: 15:00 | F24: 19:00 | G24: 20:00 | H24: 23:30 | I24: 06:00:00 | J24: 01:30:00 | K24: 00:12:51.429 | L24: 01:42:51.429 | M24: 07:42:51.429 | N24: 07:20:00 | Q24: 00:22:51.429 | R24: 00:00:00 | X24: 15:00:00 | Y24: 19:00:00 | Z24: 20:00:00 | AA24: 23:30:00
A25: 6 | B25: 2018-05-18 | C25: 2018-05-18 | E25: 16:00 | F25: 19:00 | G25: 20:00 | H25: 03:00 | I25: 04:59:59.712 | J25: 05:00:00 | K25: 00:42:51.429 | L25: 05:42:51.429 | M25: 10:42:51.429 | N25: 07:20:00 | Q25: 03:22:51.429 | R25: 00:00:00 | U25: Adicional Noturno: | V25: =L39 -> 3.404761905 | X25: 16:00:00 | Y25: 19:00:00 | Z25: 20:00:00 | AA25: 03:00:00
A26: 7 | B26: 2018-05-19 | C26: 2018-05-19 | D26: F | E26: 16:00 | F26: 19:00 | G26: 20:00 | H26: 04:00 | I26: 04:59:59.712 | J26: 06:00:00 | K26: 00:51:25.714 | L26: 06:51:25.714 | M26: 11:51:25.714 | N26: 00:00:00 | Q26: 00:00:00 | R26: 11:51:25.714 | U26: Horas Trabalhadas: | V26: =M39 -> 10.29017857 | X26: 16:00:00 | Y26: 19:00:00 | Z26: 20:00:00 | AA26: 04:00:00
A27: 1 | B27: 2018-05-20 | C27: 2018-05-20 | E27: 16:00 | F27: 19:00 | G27: 20:00 | H27: 22:00 | I27: 04:59:59.712 | J27: 00:00:00 | K27: 00:00:00 | L27: 00:00:00 | M27: 05:00:00 | N27: 07:20:00 | P27: 02:20:00 | Q27: 00:00:00 | R27: 00:00:00 | U27: Ausências Injustificadas: | V27: =O39 -> 0.04365079365 | X27: 16:00:00 | Y27: 19:00:00 | Z27: 20:00:00 | AA27: 22:00:00
A28: 2 | B28: 2018-05-21 | C28: 2018-05-21 | E28: 17:00 | F28: 20:00 | G28: 24:00 | H28: 05:00 | I28: 03:00:00 | J28: 05:00:00 | K28: 00:42:51.429 | L28: 05:42:51.429 | M28: 08:42:51.429 | N28: 07:20:00 | Q28: 01:22:51.429 | R28: 00:00:00 | U28: Horas Compensadas: | V28: =P39 -> 2.117063492 | X28: 17:00:00 | Y28: 20:00:00 | Z28: 00:00:00 | AA28: 05:00:00
A29: 3 | B29: 2018-05-22 | C29: 2018-05-22 | E29: 17:00 | F29: 19:00 | G29: 00:00 | H29: 00:00 | I29: 01:59:59.712 | J29: 00:00:00 | K29: 00:00:00 | L29: 00:00:00 | M29: 02:00:00 | N29: 07:20:00 | P29: 05:20:00 | Q29: 00:00:00 | R29: 00:00:00 | U29: Horas Extras: | V29: =Q39 -> 1.558531746 | X29: 17:00:00 | Y29: 19:00:00 | Z29: 00:00:00 | AA29: 00:00:00
A30: 4 | B30: 2018-05-23 | C30: 2018-05-23 | E30: 00:00 | F30: 00:00 | G30: 00:00 | H30: 00:00 | I30: 00:00:00 | J30: 00:00:00 | K30: 00:00:00 | L30: 00:00:00 | M30: 00:00:00 | N30: 07:20:00 | P30: 07:20:00 | Q30: 00:00:00 | R30: 00:00:00 | U30: Folgas Trabalhadas: | V30: =R39 -> 2.883928571 | X30: 00:00:00 | Y30: 00:00:00 | Z30: 00:00:00 | AA30: 00:00:00
A31: 5 | B31: 2018-05-24 | C31: =IF(B31="","",IF(COUNTIF(fer,B31)>0,"feriado",B31)) -> 2018-05-24 | E31: 17:00 | F31: 19:00 | G31: 20:00 | H31: 23:00 | I31: 04:00:00.288 | J31: 01:00:00 | K31: 00:08:34.286 | L31: 01:08:34.286 | M31: 05:08:34.286 | N31: 07:20:00 | P31: 02:11:25.714 | Q31: 00:00:00 | R31: 00:00:00 | X31: 17:00:00 | Y31: 19:00:00 | Z31: 20:00:00 | AA31: 23:00:00
A32: 6 | B32: 2018-05-25 | C32: 2018-05-25 | D32: F | E32: 17:00 | F32: 19:00 | G32: 20:00 | H32: 07:00 | I32: 06:00:00 | J32: 07:00:00 | K32: 01:00:00 | L32: 08:00:00 | M32: 14:00:00 | N32: 00:00:00 | Q32: 00:00:00 | R32: 14:00:00 | U32: =IF(V28-V29=0,0,(IF(V28-V29<0,"Horas Extras","Horas Compensadas"))) -> Horas Compensadas | V32: =IF(V28-V29<0,(V28*-1)-(V29*-1),V28-V29) -> 0.558531746 | X32: 17:00:00 | Y32: 19:00:00 | Z32: 20:00:00 | AA32: 07:00:00
A33: 7 | B33: 2018-05-26 | C33: 2018-05-26 | E33: 00:00 | F33: 00:00 | G33: 00:00 | H33: 00:00 | I33: 00:00:00 | J33: 00:00:00 | K33: 00:00:00 | L33: 00:00:00 | M33: 00:00:00 | N33: 07:20:00 | P33: 07:20:00 | Q33: 00:00:00 | R33: 00:00:00 | X33: 00:00:00 | Y33: 00:00:00 | Z33: 00:00:00 | AA33: 00:00:00
A34: 1 | B34: 2018-05-27 | C34: 2018-05-27 | D34: A | E34: 18:00 | F34: 22:00 | G34: 23:00 | H34: 01:00 | I34: 04:00:00.288 | J34: 02:00:00 | K34: 00:17:08.571 | L34: 02:17:08.571 | M34: 06:17:08.571 | N34: 07:20:00 | O34: 01:02:51.429 | Q34: 00:00:00 | R34: 00:00:00 | X34: 18:00:00 | Y34: 22:00:00 | Z34: 23:00:00 | AA34: 01:00:00
A35: 2 | B35: 2018-05-28 | C35: 2018-05-28 | E35: 18:00 | F35: 22:00 | G35: 23:00 | H35: 09:00 | I35: 07:59:59.712 | J35: 06:00:00 | K35: 00:51:25.714 | L35: 06:51:25.714 | M35: 14:51:25.714 | N35: 07:20:00 | Q35: 07:31:25.714 | R35: 00:00:00 | X35: 18:00:00 | Y35: 22:00:00 | Z35: 23:00:00 | AA35: 09:00:00
A36: 3 | B36: =IF(B35="","",IF(B35>=fim,"",B35+1)) -> 2018-05-29 | C36: 2018-05-29 | E36: 18:00 | F36: 22:00 | G36: 22:15 | H36: 08:00 | I36: 07:00:00.288 | J36: 06:45:00 | K36: 00:57:51.429 | L36: 07:42:51.429 | M36: 14:42:51.429 | N36: 07:20:00 | Q36: 07:22:51.429 | R36: 00:00:00 | X36: 18:00:00 | Y36: 22:00:00 | Z36: 22:15:00 | AA36: 08:00:00
A37: 4 | B37: =IF(B36="","",IF(B36>=fim,"",B36+1)) -> 2018-05-30 | C37: 2018-05-30 | D37: F | E37: 18:00 | F37: 22:00 | G37: 22:00 | H37: 08:00 | I37: 07:00:00.288 | J37: 07:00:00 | K37: 01:00:00 | L37: 08:00:00 | M37: 15:00:00 | N37: 00:00:00 | Q37: 00:00:00 | R37: 15:00:00 | X37: 18:00:00 | Y37: 22:00:00 | Z37: 22:00:00 | AA37: 08:00:00
A38: 5 | B38: =IF(B37="","",IF(B37>=fim,"",B37+1)) -> 2018-05-31 | C38: 2018-05-31 | D38: F | E38: 17:00 | F38: 21:00 | G38: 22:00 | H38: 04:00 | I38: 04:00:00.288 | J38: 06:00:00 | K38: 00:51:25.714 | L38: 06:51:25.714 | M38: 10:51:25.714 | N38: 00:00:00 | Q38: 00:00:00 | R38: 10:51:25.714 | X38: 17:00:00 | Y38: 21:00:00 | Z38: 22:00:00 | AA38: 04:00:00
B39: Início | C39: Término | E39: fer | F39: dom | G39: mês | H39: dias úteis | I39: repousos | J39: dsr | K39: Total: | L39: =SUM(L8:L38) -> 3.404761905 | M39: =SUM(M8:M38) -> 10.29017857 | N39: Total: | O39: =SUM(O8:O38) -> 0.04365079365 | P39: =SUM(P7:P38) -> 2.117063492 | Q39: =SUM(Q7:Q38) -> 1.558531746 | R39: =SUM(R8:R38) -> 2.883928571
B40: =B8 -> 2018-05-01 | C40: =MAX(B8:B38) -> 2018-05-31 | E40: =COUNTIF(C8:C38,"feriado") -> 0 | F40: =SUMPRODUCT((WEEKDAY(ROW(INDIRECT($B40&":"&$C40)))=1)*(COUNTIF(fer,ROW(INDIRECT($B40&":"&$C40)))=0)) -> 4 | G40: =C40-B40+1 -> 31 | H40: =G40-I40 -> 27 | I40: =E40+F40 -> 4 | J40: =H40&"/"&I40 -> 27/4 | K40: Decimal: | L40: =L39*24 -> 81.71 | M40: =M39*24 -> 246.96 | N40: Decimal: | O40: =O39*24 -> 1.05 | P40: 50.81 | Q40: =Q39*24 -> 37.40 | R40: =R39*24 -> 69.21
B41: =IF(dia_f="","",DATE(ano_p,mês_p,1)) ->  | C41: =IF(dia_f="","",DATE(ano_p,mês_p+1,0)) ->  | E41: =IF(B41="","",SUMPRODUCT(((WEEKDAY(fer)>1))*(fer>=B41)*(fer<=C41))) ->  | F41: =IF(B41="","",SUMPRODUCT((WEEKDAY(ROW(INDIRECT($B41&":"&$C41)))=1)*1)) ->  | G41: =IF(B41="","",DAY(C41)) ->  | H41: =IF(B41="","",SUMPRODUCT((WEEKDAY(ROW(INDIRECT(B41&":"&C41)))>1)*(COUNTIF(fer,ROW(INDIRECT(B41&":"&C41)))=0))) ->  | I41: =IF(B41="","",E41+F41) ->  | J41: =IF(B41="","",H41&"/"&I41) ->  | K41: Dsr: | L41: =L40/$H$40*$I$40 -> 12.11
K42: =IF(B41="","","Dsr mês:") ->  | L42: =IF(B41="","",L40/H41*I41) ->  | M42: =IF(B41="","","Dsr mês:") ->  | Q42: =IF(B41="","",Q40/$H$41*$I$41) ->  | R42: =IF(B41="","",R40/$H$41*$I$41) -> 
U116: =IF(dia_f="",DATE(ano_p,mês_p,1),DATE(ano_p,mês_p-1,dia_f+1)) -> 2018-05-01 | V116: Data de início:
U117: =IF(dia_f="",DATE(ano_p,mês_p+1,0),(DATE($V$22,mês_p,dia_f))) -> 2018-05-31 | V117: Data final:
D119: Meses | F119: Anos
D120: 1 | F120: 2020
D121: 2 | F121: 2021
D122: 3 | F122: 2022
D123: 4 | F123: 2023
D124: 5 | F124: 2024
D125: 6 | F125: 2025
D126: 7 | F126: 2026
D127: 8 | F127: 2027
D128: 9 | F128: 2028
D129: 10 | F129: 2029
D130: 11 | F130: 2030
D131: 12 | F131: 2031

Sheet junho
E1: junho
B6: Data | C6: Dia Semana | D6: Folgas | E6: Entrada | F6: Saída | G6: Entrada | H6: Saída | I6: Horas Diurnas | J6: H. Not. s/ red. | K6: Hora Ficta | L6: Horas Noturnas | M6: H. Trab. | N6: H. Normais | O6: Ausências In-justificadas | P6: Compen-sadas | Q6: H. Extras | R6: HE 100% | U6: JORNADA CONTRATUAL | X6: CARTÃO PONTO ESPELHO
B7: Saldo anterior | P7: =IF(maio!U32="Horas Compensadas",maio!V32,0) -> 0.558531746 | Q7: =IF(maio!U32="Horas Extras",maio!V32,0) -> 0 | X7: Entrada | Y7: Saída | Z7: Entrada | AA7: Saída
A8: =IF(B8="","",IF(C8<>"feriado",WEEKDAY(B8),8)) -> 6 | B8: =inicio -> 2018-06-01 | C8: =IF(B8="","",IF(COUNTIF(fer,B8)>0,"feriado",B8)) -> 2018-06-01 | E8: 08:00 | F8: 12:00 | G8: 13:00 | H8: 18:00 | I8: =IF(B8="","",ROUND(M8-L8,5)) -> 09:00:00 | J8: =IF(B8="","",IF(AND(E8="",F8="",G8="",H8=""),0,IF(AND(G8="",H8=""),MAX(ININOT,MIN(FIMNOT+1,Y8+(X8>Y8)))-MAX(ININOT,X8)+(MIN(FIMNOT,Y8+(X8>Y8))-MIN(FIMNOT,X8)),MAX(ININOT,MIN(FIMNOT+1,Y8+(X8>Y8)))-MAX(ININOT,X8)+(MIN(FIMNOT,Y8+(X8>Y8))-MIN(FIMNOT,X8))+MAX(ININOT,MIN(FIMNOT+1,AA8+(Z8>AA8)))-MAX(ININOT,Z8)+(MIN(FIMNOT,AA8+(Z8>AA8))-MIN(FIMNOT,Z8))))) -> 00:00:00 | K8: =IF(B8="","",(J8/7*8)-J8) -> 00:00:00 | L8: =IF(B8="","",J8+K8) -> 00:00:00 | M8: =IF(B8="","",MOD((Y8-X8)+(AA8-Z8),1)+K8) -> 09:00:00 | N8: =IF(B8="","",IF(D8="F",$V$16,VLOOKUP(A8,jornada,3))) -> 07:20:00 | O8: =IF(B8="","",IF(AND(D8="A",N8>M8),N8-M8,"")) ->  | P8: =IF(B8="","",IF(AND(M8>0,D8="F"),"",IF(D8="A","",IF(M8<N8,N8-M8,"")))) ->  | Q8: =IF(B8="","",IF(N8=0,0,MAX(0,M8-N8))) -> 01:40:00 | R8: =IF(B8="","",IF(N8=0,M8,0)) -> 00:00:00 | T8: 1 | U8: domingo | V8: 07:20:00 | X8: =IF(B8="","",IF($E8="",0,TIME(INT(E8/100),MOD(E8,100),0))) -> 08:00:00 | Y8: =IF(B8="","",IF($F8="",0,TIME(INT(F8/100),MOD(F8,100),0))) -> 12:00:00 | Z8: =IF(B8="","",IF($G8="",0,TIME(INT(G8/100),MOD(G8,100),0))) -> 13:00:00 | AA8: =IF(B8="","",IF($H8="",0,TIME(INT(H8/100),MOD(H8,100),0))) -> 18:00:00
A9: =IF(B9="","",IF(C9<>"feriado",WEEKDAY(B9),8)) -> 7 | B9: =B8+1 -> 2018-06-02 | C9: =IF(B9="","",IF(COUNTIF(fer,B9)>0,"feriado",B9)) -> 2018-06-02 | E9: 00:00 | F9: 00:00 | G9: 00:00 | H9: 00:00 | I9: =IF(B9="","",ROUND(M9-L9,5)) -> 00:00:00 | J9: 00:00:00 | K9: =IF(B9="","",(J9/7*8)-J9) -> 00:00:00 | L9: =IF(B9="","",J9+K9) -> 00:00:00 | M9: =IF(B9="","",MOD((Y9-X9)+(AA9-Z9),1)+K9) -> 00:00:00 | N9: 07:20:00 | O9: =IF(B9="","",IF(AND(D9="A",N9>M9),N9-M9,"")) ->  | P9: =IF(B9="","",IF(AND(M9>0,D9="F"),"",IF(D9="A","",IF(M9<N9,N9-M9,"")))) -> 07:20:00 | Q9: =IF(B9="","",IF(N9=0,0,MAX(0,M9-N9))) -> 00:00:00 | R9: 00:00:00 | T9: 2 | U9: Segunda-feira | V9: 07:20:00 | X9: =IF(B9="","",IF($E9="",0,TIME(INT(E9/100),MOD(E9,100),0))) -> 00:00:00 | Y9: =IF(B9="","",IF($F9="",0,TIME(INT(F9/100),MOD(F9,100),0))) -> 00:00:00 | Z9: =IF(B9="","",IF($G9="",0,TIME(INT(G9/100),MOD(G9,100),0))) -> 00:00:00 | AA9: =IF(B9="","",IF($H9="",0,TIME(INT(H9/100),MOD(H9,100),0))) -> 00:00:00
A10: 1 | B10: =B9+1 -> 2018-06-03 | C10: 2018-06-03 | D10: F | E10: 08:00 | F10: 12:00 | G10: 00:00 | H10: 00:00 | I10: 04:00:00.288 | J10: 00:00:00 | K10: 00:00:00 | L10: 00:00:00 | M10: 04:00:00 | N10: 00:00:00 | Q10: 00:00:00 | R10: 04:00:00 | T10: 3 | U10: Terça-feira | V10: 07:20:00 | X10: 08:00:00 | Y10: 12:00:00 | Z10: 00:00:00 | AA10: 00:00:00
A11: 2 | B11: =B10+1 -> 2018-06-04 | C11: 2018-06-04 | E11: 09:00 | F11: 12:00 | G11: 13:00 | H11: 18:00 | I11: 07:59:59.712 | J11: 00:00:00 | K11: 00:00:00 | L11: 00:00:00 | M11: 08:00:00 | N11: 07:20:00 | Q11: 00:40:00 | R11: 00:00:00 | T11: 4 | U11: Quarta-feira | V11: 07:20:00 | X11: 09:00:00 | Y11: 12:00:00 | Z11: 13:00:00 | AA11: 18:00:00
A12: 3 | B12: =B11+1 -> 2018-06-05 | C12: 2018-06-05 | E12: 09:00 | F12: 13:00 | G12: 13:30 | H12: 16:00 | I12: 06:29:59.712 | J12: 00:00:00 | K12: 00:00:00 | L12: 00:00:00 | M12: 06:30:00 | N12: 07:20:00 | P12: 00:50:00 | Q12: 00:00:00 | R12: 00:00:00 | T12: 5 | U12: Quinta-feira | V12: 07:20:00 | X12: 09:00:00 | Y12: 13:00:00 | Z12: 13:30:00 | AA12: 16:00:00
A13: 4 | B13: =B12+1 -> 2018-06-06 | C13: 2018-06-06 | D13: A | E13: 10:00 | F13: 14:00 | G13: 00:00 | H13: 00:00 | I13: 04:00:00.288 | J13: 00:00:00 | K13: 00:00:00 | L13: 00:00:00 | M13: 04:00:00 | N13: 07:20:00 | O13: 03:20:00 | Q13: 00:00:00 | R13: 00:00:00 | T13: 6 | U13: Sexta-feira | V13: 07:20:00 | X13: 10:00:00 | Y13: 14:00:00 | Z13: 00:00:00 | AA13: 00:00:00
A14: 5 | B14: 2018-06-07 | C14: 2018-06-07 | E14: 12:00 | F14: 16:00 | G14: 17:00 | H14: 22:15 | I14: 09:00:00 | J14: 00:15:00 | K14: 00:02:08.571 | L14: 00:17:08.571 | M14: 09:17:08.571 | N14: 07:20:00 | Q14: 01:57:08.571 | R14: 00:00:00 | T14: 7 | U14: Sábado | V14: 07:20:00 | X14: 12:00:00 | Y14: 16:00:00 | Z14: 17:00:00 | AA14: 22:15:00
A15: 6 | B15: 2018-06-08 | C15: 2018-06-08 | D15: F | E15: 00:00 | F15: 00:00 | G15: 00:00 | H15: 00:00 | I15: 00:00:00 | J15: 00:00:00 | K15: 00:00:00 | L15: 00:00:00 | M15: 00:00:00 | N15: 00:00:00 | Q15: 00:00:00 | R15: 00:00:00 | T15: 8 | U15: Feriados | V15: 07:20:00 | X15: 00:00:00 | Y15: 00:00:00 | Z15: 00:00:00 | AA15: 00:00:00
A16: 7 | B16: 2018-06-09 | C16: 2018-06-09 | E16: 10:00 | F16: 14:00 | G16: 14:45 | H16: 17:30 | I16: 06:45:00 | J16: 00:00:00 | K16: 00:00:00 | L16: 00:00:00 | M16: 06:45:00 | N16: 07:20:00 | P16: 00:35:00 | Q16: 00:00:00 | R16: 00:00:00 | U16: Folgas | V16: 00:00:00 | X16: 10:00:00 | Y16: 14:00:00 | Z16: 14:45:00 | AA16: 17:30:00
A17: 1 | B17: 2018-06-10 | C17: 2018-06-10 | E17: 11:00 | F17: 16:00 | G17: 17:00 | H17: 20:00 | I17: 07:59:59.712 | J17: 00:00:00 | K17: 00:00:00 | L17: 00:00:00 | M17: 08:00:00 | N17: 07:20:00 | Q17: 00:40:00 | R17: 00:00:00 | U17: HORÁRIO NOTURNO | X17: 11:00:00 | Y17: 16:00:00 | Z17: 17:00:00 | AA17: 20:00:00
A18: 2 | B18: 2018-06-11 | C18: 2018-06-11 | E18: 19:00 | F18: 21:00 | G18: 22:00 | H18: 05:00 | I18: 01:59:59.712 | J18: 07:00:00 | K18: 01:00:00 | L18: 08:00:00 | M18: 10:00:00 | N18: 07:20:00 | Q18: 02:40:00 | R18: 00:00:00 | U18: Início | V18: 22:00:00 | X18: 19:00:00 | Y18: 21:00:00 | Z18: 22:00:00 | AA18: 05:00:00
A19: 3 | B19: 2018-06-12 | C19: 2018-06-12 | D19: F | E19: 00:00 | F19: 00:00 | G19: 00:00 | H19: 00:00 | I19: 00:00:00 | J19: 00:00:00 | K19: 00:00:00 | L19: 00:00:00 | M19: 00:00:00 | N19: 00:00:00 | Q19: 00:00:00 | R19: 00:00:00 | U19: Término | V19: 05:00:00 | X19: 00:00:00 | Y19: 00:00:00 | Z19: 00:00:00 | AA19: 00:00:00
A20: 4 | B20: 2018-06-13 | C20: 2018-06-13 | E20: 05:00 | F20: 08:00 | G20: 09:00 | H20: 12:00 | I20: 06:00:00 | J20: 00:00:00 | K20: 00:00:00 | L20: 00:00:00 | M20: 06:00:00 | N20: 07:20:00 | P20: 01:20:00 | Q20: 00:00:00 | R20: 00:00:00 | U20: FECHAMENTO DO PONTO | X20: 05:00:00 | Y20: 08:00:00 | Z20: 09:00:00 | AA20: 12:00:00
A21: 5 | B21: 2018-06-14 | C21: 2018-06-14 | E21: 20:00 | F21: 22:00 | G21: 23:00 | H21: 05:00 | I21: 01:59:59.712 | J21: 06:00:00 | K21: 00:51:25.714 | L21: 06:51:25.714 | M21: 08:51:25.714 | N21: 07:20:00 | Q21: 01:31:25.714 | R21: 00:00:00 | U21: Dia do fechamento do ponto: | X21: 20:00:00 | Y21: 22:00:00 | Z21: 23:00:00 | AA21: 05:00:00
A22: 6 | B22: 2018-06-15 | C22: 2018-06-15 | D22: A | E22: 00:00 | F22: 00:00 | G22: 00:00 | H22: 00:00 | I22: 00:00:00 | J22: 00:00:00 | K22: 00:00:00 | L22: 00:00:00 | M22: 00:00:00 | N22: 07:20:00 | O22: 07:20:00 | Q22: 00:00:00 | R22: 00:00:00 | U22: Selecione o ano : | V22: 2018 | X22: 00:00:00 | Y22: 00:00:00 | Z22: 00:00:00 | AA22: 00:00:00
A23: 7 | B23: 2018-06-16 | C23: 2018-06-16 | E23: 15:00 | F23: 19:00 | G23: 20:00 | H23: 01:00 | I23: 06:00:00 | J23: 03:00:00 | K23: 00:25:42.857 | L23: 03:25:42.857 | M23: 09:25:42.857 | N23: 07:20:00 | Q23: 02:05:42.857 | R23: 00:00:00 | U23: Selecione o mês : | V23: 6 | X23: 15:00:00 | Y23: 19:00:00 | Z23: 20:00:00 | AA23: 01:00:00
A24: 1 | B24: 2018-06-17 | C24: 2018-06-17 | E24: 00:00 | F24: 00:00 | G24: 00:00 | H24: 00:00 | I24: 00:00:00 | J24: 00:00:00 | K24: 00:00:00 | L24: 00:00:00 | M24: 00:00:00 | N24: 07:20:00 | P24: 07:20:00 | Q24: 00:00:00 | R24: 00:00:00 | X24: 00:00:00 | Y24: 00:00:00 | Z24: 00:00:00 | AA24: 00:00:00
A25: 2 | B25: 2018-06-18 | C25: 2018-06-18 | E25: 16:00 | F25: 19:00 | G25: 20:00 | H25: 03:00 | I25: 04:59:59.712 | J25: 05:00:00 | K25: 00:42:51.429 | L25: 05:42:51.429 | M25: 10:42:51.429 | N25: 07:20:00 | Q25: 03:22:51.429 | R25: 00:00:00 | U25: Adicional Noturno: | V25: =L39 -> 2.952380952 | X25: 16:00:00 | Y25: 19:00:00 | Z25: 20:00:00 | AA25: 03:00:00
A26: 3 | B26: 2018-06-19 | C26: 2018-06-19 | D26: F | E26: 16:00 | F26: 19:00 | G26: 20:00 | H26: 04:00 | I26: 04:59:59.712 | J26: 06:00:00 | K26: 00:51:25.714 | L26: 06:51:25.714 | M26: 11:51:25.714 | N26: 00:00:00 | Q26: 00:00:00 | R26: 11:51:25.714 | U26: Horas Trabalhadas: | V26: =M39 -> 8.254464286 | X26: 16:00:00 | Y26: 19:00:00 | Z26: 20:00:00 | AA26: 04:00:00
A27: 4 | B27: 2018-06-20 | C27: 2018-06-20 | E27: 16:00 | F27: 19:00 | G27: 20:00 | H27: 22:00 | I27: 04:59:59.712 | J27: 00:00:00 | K27: 00:00:00 | L27: 00:00:00 | M27: 05:00:00 | N27: 07:20:00 | P27: 02:20:00 | Q27: 00:00:00 | R27: 00:00:00 | U27: Ausências Injustificadas: | V27: =O39 -> 0.4880952381 | X27: 16:00:00 | Y27: 19:00:00 | Z27: 20:00:00 | AA27: 22:00:00
A28: 5 | B28: 2018-06-21 | C28: 2018-06-21 | E28: 17:00 | F28: 20:00 | G28: 24:00 | H28: 05:00 | I28: 03:00:00 | J28: 05:00:00 | K28: 00:42:51.429 | L28: 05:42:51.429 | M28: 08:42:51.429 | N28: 07:20:00 | Q28: 01:22:51.429 | R28: 00:00:00 | U28: Horas Compensadas: | V28: =P39 -> 2.306051587 | X28: 17:00:00 | Y28: 20:00:00 | Z28: 00:00:00 | AA28: 05:00:00
A29: 6 | B29: 2018-06-22 | C29: 2018-06-22 | E29: 17:00 | F29: 19:00 | G29: 00:00 | H29: 00:00 | I29: 01:59:59.712 | J29: 00:00:00 | K29: 00:00:00 | L29: 00:00:00 | M29: 02:00:00 | N29: 07:20:00 | P29: 05:20:00 | Q29: 00:00:00 | R29: 00:00:00 | U29: Horas Extras: | V29: =Q39 -> 1.287698413 | X29: 17:00:00 | Y29: 19:00:00 | Z29: 00:00:00 | AA29: 00:00:00
A30: 7 | B30: 2018-06-23 | C30: 2018-06-23 | E30: 00:00 | F30: 00:00 | G30: 00:00 | H30: 00:00 | I30: 00:00:00 | J30: 00:00:00 | K30: 00:00:00 | L30: 00:00:00 | M30: 00:00:00 | N30: 07:20:00 | P30: 07:20:00 | Q30: 00:00:00 | R30: 00:00:00 | U30: Folgas Trabalhadas: | V30: =R39 -> 1.869047619 | X30: 00:00:00 | Y30: 00:00:00 | Z30: 00:00:00 | AA30: 00:00:00
A31: 1 | B31: 2018-06-24 | C31: =IF(B31="","",IF(COUNTIF(fer,B31)>0,"feriado",B31)) -> 2018-06-24 | E31: 17:00 | F31: 19:00 | G31: 20:00 | H31: 23:00 | I31: 04:00:00.288 | J31: 01:00:00 | K31: 00:08:34.286 | L31: 01:08:34.286 | M31: 05:08:34.286 | N31: 07:20:00 | P31: 02:11:25.714 | Q31: 00:00:00 | R31: 00:00:00 | X31: 17:00:00 | Y31: 19:00:00 | Z31: 20:00:00 | AA31: 23:00:00
A32: 2 | B32: 2018-06-25 | C32: 2018-06-25 | D32: F | E32: 17:00 | F32: 19:00 | G32: 20:00 | H32: 07:00 | I32: 06:00:00 | J32: 07:00:00 | K32: 01:00:00 | L32: 08:00:00 | M32: 14:00:00 | N32: 00:00:00 | Q32: 00:00:00 | R32: 14:00:00 | U32: =IF(V28-V29=0,0,(IF(V28-V29<0,"Horas Extras","Horas Compensadas"))) -> Horas Compensadas | V32: =IF(V28-V29<0,(V28*-1)-(V29*-1),V28-V29) -> 1.018353175 | X32: 17:00:00 | Y32: 19:00:00 | Z32: 20:00:00 | AA32: 07:00:00
A33: 3 | B33: 2018-06-26 | C33: 2018-06-26 | E33: 00:00 | F33: 00:00 | G33: 00:00 | H33: 00:00 | I33: 00:00:00 | J33: 00:00:00 | K33: 00:00:00 | L33: 00:00:00 | M33: 00:00:00 | N33: 07:20:00 | P33: 07:20:00 | Q33: 00:00:00 | R33: 00:00:00 | X33: 00:00:00 | Y33: 00:00:00 | Z33: 00:00:00 | AA33: 00:00:00
A34: 4 | B34: 2018-06-27 | C34: 2018-06-27 | D34: A | E34: 18:00 | F34: 22:00 | G34: 23:00 | H34: 01:00 | I34: 04:00:00.288 | J34: 02:00:00 | K34: 00:17:08.571 | L34: 02:17:08.571 | M34: 06:17:08.571 | N34: 07:20:00 | O34: 01:02:51.429 | Q34: 00:00:00 | R34: 00:00:00 | X34: 18:00:00 | Y34: 22:00:00 | Z34: 23:00:00 | AA34: 01:00:00
A35: 5 | B35: 2018-06-28 | C35: 2018-06-28 | E35: 18:00 | F35: 22:00 | G35: 23:00 | H35: 09:00 | I35: 07:59:59.712 | J35: 06:00:00 | K35: 00:51:25.714 | L35: 06:51:25.714 | M35: 14:51:25.714 | N35: 07:20:00 | Q35: 07:31:25.714 | R35: 00:00:00 | X35: 18:00:00 | Y35: 22:00:00 | Z35: 23:00:00 | AA35: 09:00:00
A36: 6 | B36: =IF(B35="","",IF(B35>=fim,"",B35+1)) -> 2018-06-29 | C36: 2018-06-29 | E36: 18:00 | F36: 22:00 | G36: 22:15 | H36: 08:00 | I36: 07:00:00.288 | J36: 06:45:00 | K36: 00:57:51.429 | L36: 07:42:51.429 | M36: 14:42:51.429 | N36: 07:20:00 | Q36: 07:22:51.429 | R36: 00:00:00 | X36: 18:00:00 | Y36: 22:00:00 | Z36: 22:15:00 | AA36: 08:00:00
A37: 7 | B37: =IF(B36="","",IF(B36>=fim,"",B36+1)) -> 2018-06-30 | C37: 2018-06-30 | D37: F | E37: 18:00 | F37: 22:00 | G37: 22:00 | H37: 08:00 | I37: 07:00:00.288 | J37: 07:00:00 | K37: 01:00:00 | L37: 08:00:00 | M37: 15:00:00 | N37: 00:00:00 | Q37: 00:00:00 | R37: 15:00:00 | X37: 18:00:00 | Y37: 22:00:00 | Z37: 22:00:00 | AA37: 08:00:00
B38: =IF(B37="","",IF(B37>=fim,"",B37+1)) -> 
B39: Início | C39: Término | E39: fer | F39: dom | G39: mês | H39: dias úteis | I39: repousos | J39: dsr | K39: Total: | L39: =SUM(L8:L38) -> 2.952380952 | M39: =SUM(M8:M38) -> 8.254464286 | N39: Total: | O39: =SUM(O8:O38) -> 0.4880952381 | P39: =SUM(P7:P38) -> 2.306051587 | Q39: =SUM(Q7:Q38) -> 1.287698413 | R39: =SUM(R8:R38) -> 1.869047619
B40: =B8 -> 2018-06-01 | C40: =MAX(B8:B38) -> 2018-06-30 | E40: =COUNTIF(C8:C38,"feriado") -> 0 | F40: =SUMPRODUCT((WEEKDAY(ROW(INDIRECT($B40&":"&$C40)))=1)*(COUNTIF(fer,ROW(INDIRECT($B40&":"&$C40)))=0)) -> 4 | G40: =C40-B40+1 -> 30 | H40: =G40-I40 -> 26 | I40: =E40+F40 -> 4 | J40: =H40&"/"&I40 -> 26/4 | K40: Decimal: | L40: =L39*24 -> 70.86 | M40: =M39*24 -> 198.11 | N40: Decimal: | O40: =O39*24 -> 11.71 | P40: 55.35 | Q40: =Q39*24 -> 30.90 | R40: =R39*24 -> 44.86
B41: =IF(dia_f="","",DATE(ano_p,mês_p,1)) ->  | C41: =IF(dia_f="","",DATE(ano_p,mês_p+1,0)) ->  | E41: =IF(B41="","",SUMPRODUCT(((WEEKDAY(fer)>1))*(fer>=B41)*(fer<=C41))) ->  | F41: =IF(B41="","",SUMPRODUCT((WEEKDAY(ROW(INDIRECT($B41&":"&$C41)))=1)*1)) ->  | G41: =IF(B41="","",DAY(C41)) ->  | H41: =IF(B41="","",SUMPRODUCT((WEEKDAY(ROW(INDIRECT(B41&":"&C41)))>1)*(COUNTIF(fer,ROW(INDIRECT(B41&":"&C41)))=0))) ->  | I41: =IF(B41="","",E41+F41) ->  | J41: =IF(B41="","",H41&"/"&I41) ->  | K41: Dsr: | L41: =L40/$H$40*$I$40 -> 10.90
K42: =IF(B41="","","Dsr mês:") ->  | L42: =IF(B41="","",L40/H41*I41) ->  | M42: =IF(B41="","","Dsr mês:") ->  | Q42: =IF(B41="","",Q40/$H$41*$I$41) ->  | R42: =IF(B41="","",R40/$H$41*$I$41) -> 
U116: =IF(dia_f="",DATE(ano_p,mês_p,1),DATE(ano_p,mês_p-1,dia_f+1)) -> 2018-06-01 | V116: Data de início:
U117: =IF(dia_f="",DATE(ano_p,mês_p+1,0),(DATE($V$22,mês_p,dia_f))) -> 2018-06-30 | V117: Data final:
D119: Meses | F119: Anos
D120: 1 | F120: 2020
D121: 2 | F121: 2021
D122: 3 | F122: 2022
D123: 4 | F123: 2023
D124: 5 | F124: 2024
D125: 6 | F125: 2025
D126: 7 | F126: 2026
D127: 8 | F127: 2027
D128: 9 | F128: 2028
D129: 10 | F129: 2029
D130: 11 | F130: 2030
D131: 12 | F131: 2031

Sheet julho
E1: julho
B6: Data | C6: Dia Semana | D6: Folgas | E6: Entrada | F6: Saída | G6: Entrada | H6: Saída | I6: Horas Diurnas | J6: H. Not. s/ red. | K6: Hora Ficta | L6: Horas Noturnas | M6: H. Trab. | N6: H. Normais | O6: Ausências In-justificadas | P6: Compen-sadas | Q6: H. Extras | R6: HE 100% | U6: JORNADA CONTRATUAL | X6: CARTÃO PONTO ESPELHO
B7: Saldo anterior | P7: =IF(junho!U32="Horas Compensadas",junho!V32,0) -> 1.018353175 | Q7: =IF(junho!U32="Horas Extras",junho!V32,0) -> 0 | X7: Entrada | Y7: Saída | Z7: Entrada | AA7: Saída
A8: =IF(B8="","",IF(C8<>"feriado",WEEKDAY(B8),8)) -> 1 | B8: =inicio -> 2018-07-01 | C8: =IF(B8="","",IF(COUNTIF(fer,B8)>0,"feriado",B8)) -> 2018-07-01 | E8: 08:00 | F8: 12:00 | G8: 13:00 | H8: 18:00 | I8: =IF(B8="","",ROUND(M8-L8,5)) -> 09:00:00 | J8: =IF(B8="","",IF(AND(E8="",F8="",G8="",H8=""),0,IF(AND(G8="",H8=""),MAX(ININOT,MIN(FIMNOT+1,Y8+(X8>Y8)))-MAX(ININOT,X8)+(MIN(FIMNOT,Y8+(X8>Y8))-MIN(FIMNOT,X8)),MAX(ININOT,MIN(FIMNOT+1,Y8+(X8>Y8)))-MAX(ININOT,X8)+(MIN(FIMNOT,Y8+(X8>Y8))-MIN(FIMNOT,X8))+MAX(ININOT,MIN(FIMNOT+1,AA8+(Z8>AA8)))-MAX(ININOT,Z8)+(MIN(FIMNOT,AA8+(Z8>AA8))-MIN(FIMNOT,Z8))))) -> 00:00:00 | K8: =IF(B8="","",(J8/7*8)-J8) -> 00:00:00 | L8: =IF(B8="","",J8+K8) -> 00:00:00 | M8: =IF(B8="","",MOD((Y8-X8)+(AA8-Z8),1)+K8) -> 09:00:00 | N8: =IF(B8="","",IF(D8="F",$V$16,VLOOKUP(A8,jornada,3))) -> 07:20:00 | O8: =IF(B8="","",IF(AND(D8="A",N8>M8),N8-M8,"")) ->  | P8: =IF(B8="","",IF(AND(M8>0,D8="F"),"",IF(D8="A","",IF(M8<N8,N8-M8,"")))) ->  | Q8: =IF(B8="","",IF(N8=0,0,MAX(0,M8-N8))) -> 01:40:00 | R8: =IF(B8="","",IF(N8=0,M8,0)) -> 00:00:00 | T8: 1 | U8: domingo | V8: 07:20:00 | X8: =IF(B8="","",IF($E8="",0,TIME(INT(E8/100),MOD(E8,100),0))) -> 08:00:00 | Y8: =IF(B8="","",IF($F8="",0,TIME(INT(F8/100),MOD(F8,100),0))) -> 12:00:00 | Z8: =IF(B8="","",IF($G8="",0,TIME(INT(G8/100),MOD(G8,100),0))) -> 13:00:00 | AA8: =IF(B8="","",IF($H8="",0,TIME(INT(H8/100),MOD(H8,100),0))) -> 18:00:00
A9: =IF(B9="","",IF(C9<>"feriado",WEEKDAY(B9),8)) -> 2 | B9: =B8+1 -> 2018-07-02 | C9: =IF(B9="","",IF(COUNTIF(fer,B9)>0,"feriado",B9)) -> 2018-07-02 | E9: 00:00 | F9: 00:00 | G9: 00:00 | H9: 00:00 | I9: =IF(B9="","",ROUND(M9-L9,5)) -> 00:00:00 | J9: 00:00:00 | K9: =IF(B9="","",(J9/7*8)-J9) -> 00:00:00 | L9: =IF(B9="","",J9+K9) -> 00:00:00 | M9: =IF(B9="","",MOD((Y9-X9)+(AA9-Z9),1)+K9) -> 00:00:00 | N9: 07:20:00 | O9: =IF(B9="","",IF(AND(D9="A",N9>M9),N9-M9,"")) ->  | P9: =IF(B9="","",IF(AND(M9>0,D9="F"),"",IF(D9="A","",IF(M9<N9,N9-M9,"")))) -> 07:20:00 | Q9: =IF(B9="","",IF(N9=0,0,MAX(0,M9-N9))) -> 00:00:00 | R9: 00:00:00 | T9: 2 | U9: Segunda-feira | V9: 07:20:00 | X9: =IF(B9="","",IF($E9="",0,TIME(INT(E9/100),MOD(E9,100),0))) -> 00:00:00 | Y9: =IF(B9="","",IF($F9="",0,TIME(INT(F9/100),MOD(F9,100),0))) -> 00:00:00 | Z9: =IF(B9="","",IF($G9="",0,TIME(INT(G9/100),MOD(G9,100),0))) -> 00:00:00 | AA9: =IF(B9="","",IF($H9="",0,TIME(INT(H9/100),MOD(H9,100),0))) -> 00:00:00
A10: 3 | B10: =B9+1 -> 2018-07-03 | C10: 2018-07-03 | E10: 08:00 | F10: 12:00 | G10: 00:00 | H10: 00:00 | I10: 04:00:00.288 | J10: 00:00:00 | K10: 00:00:00 | L10: 00:00:00 | M10: 04:00:00 | N10: 07:20:00 | P10: 03:20:00 | Q10: 00:00:00 | R10: 00:00:00 | T10: 3 | U10: Terça-feira | V10: 07:20:00 | X10: 08:00:00 | Y10: 12:00:00 | Z10: 00:00:00 | AA10: 00:00:00
A11: 4 | B11: =B10+1 -> 2018-07-04 | C11: 2018-07-04 | E11: 09:00 | F11: 12:00 | G11: 13:00 | H11: 18:00 | I11: 07:59:59.712 | J11: 00:00:00 | K11: 00:00:00 | L11: 00:00:00 | M11: 08:00:00 | N11: 07:20:00 | Q11: 00:40:00 | R11: 00:00:00 | T11: 4 | U11: Quarta-feira | V11: 07:20:00 | X11: 09:00:00 | Y11: 12:00:00 | Z11: 13:00:00 | AA11: 18:00:00
A12: 5 | B12: =B11+1 -> 2018-07-05 | C12: 2018-07-05 | E12: 09:00 | F12: 13:00 | G12: 13:30 | H12: 16:00 | I12: 06:29:59.712 | J12: 00:00:00 | K12: 00:00:00 | L12: 00:00:00 | M12: 06:30:00 | N12: 07:20:00 | P12: 00:50:00 | Q12: 00:00:00 | R12: 00:00:00 | T12: 5 | U12: Quinta-feira | V12: 07:20:00 | X12: 09:00:00 | Y12: 13:00:00 | Z12: 13:30:00 | AA12: 16:00:00
A13: 6 | B13: =B12+1 -> 2018-07-06 | C13: 2018-07-06 | D13: F | E13: 10:00 | F13: 14:00 | G13: 15:30 | H13: 20:00 | I13: 08:30:00.288 | J13: 00:00:00 | K13: 00:00:00 | L13: 00:00:00 | M13: 08:30:00 | N13: 00:00:00 | Q13: 00:00:00 | R13: 08:30:00 | T13: 6 | U13: Sexta-feira | V13: 07:20:00 | X13: 10:00:00 | Y13: 14:00:00 | Z13: 15:30:00 | AA13: 20:00:00
A14: 7 | B14: 2018-07-07 | C14: 2018-07-07 | D14: A | E14: 12:00 | F14: 17:00 | G14: 00:00 | H14: 00:00 | I14: 04:59:59.712 | J14: 00:00:00 | K14: 00:00:00 | L14: 00:00:00 | M14: 05:00:00 | N14: 07:20:00 | O14: 02:20:00 | Q14: 00:00:00 | R14: 00:00:00 | T14: 7 | U14: Sábado | V14: 07:20:00 | X14: 12:00:00 | Y14: 17:00:00 | Z14: 00:00:00 | AA14: 00:00:00
A15: 1 | B15: 2018-07-08 | C15: 2018-07-08 | D15: F | E15: 00:00 | F15: 00:00 | G15: 00:00 | H15: 00:00 | I15: 00:00:00 | J15: 00:00:00 | K15: 00:00:00 | L15: 00:00:00 | M15: 00:00:00 | N15: 00:00:00 | Q15: 00:00:00 | R15: 00:00:00 | T15: 8 | U15: Feriados | V15: 07:20:00 | X15: 00:00:00 | Y15: 00:00:00 | Z15: 00:00:00 | AA15: 00:00:00
A16: 2 | B16: 2018-07-09 | C16: 2018-07-09 | E16: 10:00 | F16: 14:00 | G16: 14:45 | H16: 17:30 | I16: 06:45:00 | J16: 00:00:00 | K16: 00:00:00 | L16: 00:00:00 | M16: 06:45:00 | N16: 07:20:00 | P16: 00:35:00 | Q16: 00:00:00 | R16: 00:00:00 | U16: Folgas | V16: 00:00:00 | X16: 10:00:00 | Y16: 14:00:00 | Z16: 14:45:00 | AA16: 17:30:00
A17: 3 | B17: 2018-07-10 | C17: 2018-07-10 | E17: 11:00 | F17: 16:00 | G17: 17:00 | H17: 20:00 | I17: 07:59:59.712 | J17: 00:00:00 | K17: 00:00:00 | L17: 00:00:00 | M17: 08:00:00 | N17: 07:20:00 | Q17: 00:40:00 | R17: 00:00:00 | U17: HORÁRIO NOTURNO | X17: 11:00:00 | Y17: 16:00:00 | Z17: 17:00:00 | AA17: 20:00:00
A18: 4 | B18: 2018-07-11 | C18: 2018-07-11 | E18: 19:00 | F18: 21:00 | G18: 22:00 | H18: 05:00 | I18: 01:59:59.712 | J18: 07:00:00 | K18: 01:00:00 | L18: 08:00:00 | M18: 10:00:00 | N18: 07:20:00 | Q18: 02:40:00 | R18: 00:00:00 | U18: Início | V18: 22:00:00 | X18: 19:00:00 | Y18: 21:00:00 | Z18: 22:00:00 | AA18: 05:00:00
A19: 5 | B19: 2018-07-12 | C19: 2018-07-12 | D19: F | E19: 00:00 | F19: 00:00 | G19: 00:00 | H19: 00:00 | I19: 00:00:00 | J19: 00:00:00 | K19: 00:00:00 | L19: 00:00:00 | M19: 00:00:00 | N19: 00:00:00 | Q19: 00:00:00 | R19: 00:00:00 | U19: Término | V19: 05:00:00 | X19: 00:00:00 | Y19: 00:00:00 | Z19: 00:00:00 | AA19: 00:00:00
A20: 6 | B20: 2018-07-13 | C20: 2018-07-13 | E20: 05:00 | F20: 08:00 | G20: 09:00 | H20: 12:00 | I20: 06:00:00 | J20: 00:00:00 | K20: 00:00:00 | L20: 00:00:00 | M20: 06:00:00 | N20: 07:20:00 | P20: 01:20:00 | Q20: 00:00:00 | R20: 00:00:00 | U20: FECHAMENTO DO PONTO | X20: 05:00:00 | Y20: 08:00:00 | Z20: 09:00:00 | AA20: 12:00:00
A21: 7 | B21: 2018-07-14 | C21: 2018-07-14 | E21: 20:00 | F21: 22:00 | G21: 23:00 | H21: 05:00 | I21: 01:59:59.712 | J21: 06:00:00 | K21: 00:51:25.714 | L21: 06:51:25.714 | M21: 08:51:25.714 | N21: 07:20:00 | Q21: 01:31:25.714 | R21: 00:00:00 | U21: Dia do fechamento do ponto: | X21: 20:00:00 | Y21: 22:00:00 | Z21: 23:00:00 | AA21: 05:00:00
A22: 1 | B22: 2018-07-15 | C22: 2018-07-15 | E22: 15:00 | F22: 19:00 | G22: 20:00 | H22: 24:00 | I22: 06:00:00 | J22: 02:00:00 | K22: 00:17:08.571 | L22: 02:17:08.571 | M22: 08:17:08.571 | N22: 07:20:00 | Q22: 00:57:08.571 | R22: 00:00:00 | U22: Selecione o ano : | V22: 2018 | X22: 15:00:00 | Y22: 19:00:00 | Z22: 20:00:00 | AA22: 00:00:00
A23: 2 | B23: 2018-07-16 | C23: 2018-07-16 | E23: 15:00 | F23: 19:00 | G23: 20:00 | H23: 01:00 | I23: 06:00:00 | J23: 03:00:00 | K23: 00:25:42.857 | L23: 03:25:42.857 | M23: 09:25:42.857 | N23: 07:20:00 | Q23: 02:05:42.857 | R23: 00:00:00 | U23: Selecione o mês : | V23: 7 | X23: 15:00:00 | Y23: 19:00:00 | Z23: 20:00:00 | AA23: 01:00:00
A24: 3 | B24: 2018-07-17 | C24: 2018-07-17 | E24: 14:00 | F24: 18:00 | G24: 18:30 | H24: 02:00 | I24: 07:30:00 | J24: 04:00:00 | K24: 00:34:17.143 | L24: 04:34:17.143 | M24: 12:04:17.143 | N24: 07:20:00 | Q24: 04:44:17.143 | R24: 00:00:00 | X24: 14:00:00 | Y24: 18:00:00 | Z24: 18:30:00 | AA24: 02:00:00
A25: 4 | B25: 2018-07-18 | C25: 2018-07-18 | E25: 16:00 | F25: 19:00 | G25: 20:00 | H25: 03:00 | I25: 04:59:59.712 | J25: 05:00:00 | K25: 00:42:51.429 | L25: 05:42:51.429 | M25: 10:42:51.429 | N25: 07:20:00 | Q25: 03:22:51.429 | R25: 00:00:00 | U25: Adicional Noturno: | V25: =L39 -> 4.035714286 | X25: 16:00:00 | Y25: 19:00:00 | Z25: 20:00:00 | AA25: 03:00:00
A26: 5 | B26: 2018-07-19 | C26: 2018-07-19 | D26: F | E26: 16:00 | F26: 19:00 | G26: 20:00 | H26: 04:00 | I26: 04:59:59.712 | J26: 06:00:00 | K26: 00:51:25.714 | L26: 06:51:25.714 | M26: 11:51:25.714 | N26: 00:00:00 | Q26: 00:00:00 | R26: 11:51:25.714 | U26: Horas Trabalhadas: | V26: =M39 -> 10.25099206 | X26: 16:00:00 | Y26: 19:00:00 | Z26: 20:00:00 | AA26: 04:00:00
A27: 6 | B27: 2018-07-20 | C27: 2018-07-20 | E27: 16:00 | F27: 19:00 | G27: 20:00 | H27: 22:00 | I27: 04:59:59.712 | J27: 00:00:00 | K27: 00:00:00 | L27: 00:00:00 | M27: 05:00:00 | N27: 07:20:00 | P27: 02:20:00 | Q27: 00:00:00 | R27: 00:00:00 | U27: Ausências Injustificadas: | V27: =O39 -> 0.4027777778 | X27: 16:00:00 | Y27: 19:00:00 | Z27: 20:00:00 | AA27: 22:00:00
A28: 7 | B28: 2018-07-21 | C28: 2018-07-21 | E28: 17:00 | F28: 20:00 | G28: 24:00 | H28: 05:00 | I28: 03:00:00 | J28: 05:00:00 | K28: 00:42:51.429 | L28: 05:42:51.429 | M28: 08:42:51.429 | N28: 07:20:00 | Q28: 01:22:51.429 | R28: 00:00:00 | U28: Horas Compensadas: | V28: =P39 -> 1.80952381 | X28: 17:00:00 | Y28: 20:00:00 | Z28: 00:00:00 | AA28: 05:00:00
A29: 1 | B29: 2018-07-22 | C29: 2018-07-22 | E29: 17:00 | F29: 19:00 | G29: 19:45 | H29: 04:00 | I29: 04:14:59.712 | J29: 06:00:00 | K29: 00:51:25.714 | L29: 06:51:25.714 | M29: 11:06:25.714 | N29: 07:20:00 | Q29: 03:46:25.714 | R29: 00:00:00 | U29: Horas Extras: | V29: =Q39 -> 1.749503968 | X29: 17:00:00 | Y29: 19:00:00 | Z29: 19:45:00 | AA29: 04:00:00
A30: 2 | B30: 2018-07-23 | C30: 2018-07-23 | E30: 17:00 | F30: 19:00 | G30: 19:35 | H30: 04:00 | I30: 04:25:00.192 | J30: 06:00:00 | K30: 00:51:25.714 | L30: 06:51:25.714 | M30: 11:16:25.714 | N30: 07:20:00 | Q30: 03:56:25.714 | R30: 00:00:00 | U30: Folgas Trabalhadas: | V30: =R39 -> 2.056547619 | X30: 17:00:00 | Y30: 19:00:00 | Z30: 19:35:00 | AA30: 04:00:00
A31: 3 | B31: 2018-07-24 | C31: =IF(B31="","",IF(COUNTIF(fer,B31)>0,"feriado",B31)) -> 2018-07-24 | E31: 17:00 | F31: 19:00 | G31: 20:00 | H31: 23:00 | I31: 04:00:00.288 | J31: 01:00:00 | K31: 00:08:34.286 | L31: 01:08:34.286 | M31: 05:08:34.286 | N31: 07:20:00 | P31: 02:11:25.714 | Q31: 00:00:00 | R31: 00:00:00 | X31: 17:00:00 | Y31: 19:00:00 | Z31: 20:00:00 | AA31: 23:00:00
A32: 4 | B32: 2018-07-25 | C32: 2018-07-25 | D32: F | E32: 17:00 | F32: 19:00 | G32: 20:00 | H32: 07:00 | I32: 06:00:00 | J32: 07:00:00 | K32: 01:00:00 | L32: 08:00:00 | M32: 14:00:00 | N32: 00:00:00 | Q32: 00:00:00 | R32: 14:00:00 | U32: =IF(V28-V29=0,0,(IF(V28-V29<0,"Horas Extras","Horas Compensadas"))) -> Horas Compensadas | V32: =IF(V28-V29<0,(V28*-1)-(V29*-1),V28-V29) -> 0.06001984127 | X32: 17:00:00 | Y32: 19:00:00 | Z32: 20:00:00 | AA32: 07:00:00
A33: 5 | B33: 2018-07-26 | C33: 2018-07-26 | E33: 17:15 | F33: 19:00 | G33: 20:00 | H33: 06:30 | I33: 05:15:00 | J33: 07:00:00 | K33: 01:00:00 | L33: 08:00:00 | M33: 13:15:00 | N33: 07:20:00 | Q33: 05:55:00 | R33: 00:00:00 | X33: 17:15:00 | Y33: 19:00:00 | Z33: 20:00:00 | AA33: 06:30:00
A34: 6 | B34: 2018-07-27 | C34: 2018-07-27 | E34: 18:00 | F34: 22:00 | G34: 23:00 | H34: 01:00 | I34: 04:00:00.288 | J34: 02:00:00 | K34: 00:17:08.571 | L34: 02:17:08.571 | M34: 06:17:08.571 | N34: 07:20:00 | P34: 01:02:51.429 | Q34: 00:00:00 | R34: 00:00:00 | X34: 18:00:00 | Y34: 22:00:00 | Z34: 23:00:00 | AA34: 01:00:00
A35: 7 | B35: 2018-07-28 | C35: 2018-07-28 | D35: A | E35: 00:00 | F35: 00:00 | G35: 00:00 | H35: 00:00 | I35: 00:00:00 | J35: 00:00:00 | K35: 00:00:00 | L35: 00:00:00 | M35: 00:00:00 | N35: 07:20:00 | O35: 07:20:00 | Q35: 00:00:00 | R35: 00:00:00 | X35: 00:00:00 | Y35: 00:00:00 | Z35: 00:00:00 | AA35: 00:00:00
A36: 1 | B36: =IF(B35="","",IF(B35>=fim,"",B35+1)) -> 2018-07-29 | C36: 2018-07-29 | E36: 18:00 | F36: 22:00 | G36: 22:15 | H36: 08:00 | I36: 07:00:00.288 | J36: 06:45:00 | K36: 00:57:51.429 | L36: 07:42:51.429 | M36: 14:42:51.429 | N36: 07:20:00 | Q36: 07:22:51.429 | R36: 00:00:00 | X36: 18:00:00 | Y36: 22:00:00 | Z36: 22:15:00 | AA36: 08:00:00
A37: 2 | B37: =IF(B36="","",IF(B36>=fim,"",B36+1)) -> 2018-07-30 | C37: 2018-07-30 | D37: F | E37: 18:00 | F37: 22:00 | G37: 22:00 | H37: 08:00 | I37: 07:00:00.288 | J37: 07:00:00 | K37: 01:00:00 | L37: 08:00:00 | M37: 15:00:00 | N37: 00:00:00 | Q37: 00:00:00 | R37: 15:00:00 | X37: 18:00:00 | Y37: 22:00:00 | Z37: 22:00:00 | AA37: 08:00:00
A38: 3 | B38: =IF(B37="","",IF(B37>=fim,"",B37+1)) -> 2018-07-31 | C38: 2018-07-31 | E38: 17:00 | F38: 20:00 | G38: 21:00 | H38: 02:00 | I38: 04:00:00.288 | J38: 04:00:00 | K38: 00:34:17.143 | L38: 04:34:17.143 | M38: 08:34:17.143 | N38: 07:20:00 | Q38: 01:14:17.143 | R38: 00:00:00 | X38: 17:00:00 | Y38: 20:00:00 | Z38: 21:00:00 | AA38: 02:00:00
B39: Início | C39: Término | E39: fer | F39: dom | G39: mês | H39: dias úteis | I39: repousos | J39: dsr | K39: Total: | L39: =SUM(L8:L38) -> 4.035714286 | M39: =SUM(M8:M38) -> 10.25099206 | N39: Total: | O39: =SUM(O8:O38) -> 0.4027777778 | P39: =SUM(P7:P38) -> 1.80952381 | Q39: =SUM(Q7:Q38) -> 1.749503968 | R39: =SUM(R8:R38) -> 2.056547619
B40: =B8 -> 2018-07-01 | C40: =MAX(B8:B38) -> 2018-07-31 | E40: =COUNTIF(C8:C38,"feriado") -> 0 | F40: =SUMPRODUCT((WEEKDAY(ROW(INDIRECT($B40&":"&$C40)))=1)*(COUNTIF(fer,ROW(INDIRECT($B40&":"&$C40)))=0)) -> 5 | G40: =C40-B40+1 -> 31 | H40: =G40-I40 -> 26 | I40: =E40+F40 -> 5 | J40: =H40&"/"&I40 -> 26/5 | K40: Decimal: | L40: =L39*24 -> 96.86 | M40: =M39*24 -> 246.02 | N40: Decimal: | O40: =O39*24 -> 9.67 | P40: 43.43 | Q40: =Q39*24 -> 41.99 | R40: =R39*24 -> 49.36
B41: =IF(dia_f="","",DATE(ano_p,mês_p,1)) ->  | C41: =IF(dia_f="","",DATE(ano_p,mês_p+1,0)) ->  | E41: =IF(B41="","",SUMPRODUCT(((WEEKDAY(fer)>1))*(fer>=B41)*(fer<=C41))) ->  | F41: =IF(B41="","",SUMPRODUCT((WEEKDAY(ROW(INDIRECT($B41&":"&$C41)))=1)*1)) ->  | G41: =IF(B41="","",DAY(C41)) ->  | H41: =IF(B41="","",SUMPRODUCT((WEEKDAY(ROW(INDIRECT(B41&":"&C41)))>1)*(COUNTIF(fer,ROW(INDIRECT(B41&":"&C41)))=0))) ->  | I41: =IF(B41="","",E41+F41) ->  | J41: =IF(B41="","",H41&"/"&I41) ->  | K41: Dsr: | L41: =L40/$H$40*$I$40 -> 18.63
K42: =IF(B41="","","Dsr mês:") ->  | L42: =IF(B41="","",L40/H41*I41) ->  | M42: =IF(B41="","","Dsr mês:") ->  | Q42: =IF(B41="","",Q40/$H$41*$I$41) ->  | R42: =IF(B41="","",R40/$H$41*$I$41) -> 
U116: =IF(dia_f="",DATE(ano_p,mês_p,1),DATE(ano_p,mês_p-1,dia_f+1)) -> 2018-07-01 | V116: Data de início:
U117: =IF(dia_f="",DATE(ano_p,mês_p+1,0),(DATE($V$22,mês_p,dia_f))) -> 2018-07-31 | V117: Data final:
D119: Meses | F119: Anos
D120: 1 | F120: 2020
D121: 2 | F121: 2021
D122: 3 | F122: 2022
D123: 4 | F123: 2023
D124: 5 | F124: 2024
D125: 6 | F125: 2025
D126: 7 | F126: 2026
D127: 8 | F127: 2027
D128: 9 | F128: 2028
D129: 10 | F129: 2029
D130: 11 | F130: 2030
D131: 12 | F131: 2031

Sheet Feriados
A1: Ano | C1: Páscoa | D1: Horário Noturno
B2: =ano_p -> 2024 | C2: =ROUND(DATE($B$2,4,MOD(234-11*MOD($B$2,19),30))/7,)*7-6 -> 2024-03-31 | D2: Início: | E2: =ININOT -> 22:00:00
D3: Fim: | E3: =FIMNOT -> 05:00:00
A4: Feriados Nacionais, Municipais e Estadual
A5: Feriados Nacionais | B5: x | C5: Ano Novo | D5: =IF($B$5="X",DATE($B$2-1,1,1),DATE(1905,1,1)) -> 2023-01-01 | E5: =IF($B$5="X",DATE($B$2,1,1),DATE(1905,1,1)) -> 2024-01-01 | F5: =IF($B$5="X",DATE($B$2+1,1,1),DATE(1905,1,1)) -> 2025-01-01 | G5: =ROUND(DATE($B$2-1,4,MOD(234-11*MOD($B$2-1,19),30))/7,)*7-6 -> 2023-04-09 | V5: 1 | W5: 1 | X5: =DATE(1905,1,1) -> 1905-01-01
B6: x | C6: Tiradentes | D6: =IF($B$6="X",DATE($B$2-1,4,21),DATE(1905,1,1)) -> 2023-04-21 | E6: =IF($B$6="X",DATE($B$2,4,21),DATE(1905,1,1)) -> 2024-04-21 | F6: =IF($B$6="X",DATE($B$2+1,4,21),DATE(1905,1,1)) -> 2025-04-21 | G6: =ROUND(DATE($B$2+1,4,MOD(234-11*MOD($B$2+1,19),30))/7,)*7-6 -> 2025-04-20 | V6: 2 | W6: 2
B7: x | C7: Dia do Trabalho | D7: =IF($B$7="X",DATE($B$2-1,5,1),DATE(1905,1,1)) -> 2023-05-01 | E7: =IF($B$7="X",DATE($B$2,5,1),DATE(1905,1,1)) -> 2024-05-01 | F7: =IF($B$7="X",DATE($B$2+1,5,1),DATE(1905,1,1)) -> 2025-05-01 | V7: 3 | W7: 3
B8: x | C8: Independência | D8: =IF($B$8="X",DATE($B$2-1,9,7),DATE(1905,1,1)) -> 2023-09-07 | E8: =IF($B$8="X",DATE($B$2,9,7),DATE(1905,1,1)) -> 2024-09-07 | F8: =IF($B$8="X",DATE($B$2+1,9,7),DATE(1905,1,1)) -> 2025-09-07 | V8: 4 | W8: 4
B9: x | C9: Padroeira do Brasil | D9: =IF($B$9="X",DATE($B$2-1,10,12),DATE(1905,1,1)) -> 2023-10-12 | E9: =IF($B$9="X",DATE($B$2,10,12),DATE(1905,1,1)) -> 2024-10-12 | F9: =IF($B$9="X",DATE($B$2+1,10,12),DATE(1905,1,1)) -> 2025-10-12 | V9: 5 | W9: 5
B10: x | C10: Finados | D10: =IF($B$10="X",DATE($B$2-1,11,2),DATE(1905,1,1)) -> 2023-11-02 | E10: =IF($B$10="X",DATE($B$2,11,2),DATE(1905,1,1)) -> 2024-11-02 | F10: =IF($B$10="X",DATE($B$2+1,11,2),DATE(1905,1,1)) -> 2025-11-02 | V10: 6 | W10: 6
B11: x | C11: Proclamação da República | D11: =IF($B$11="X",DATE($B$2-1,11,15),DATE(1905,1,1)) -> 2023-11-15 | E11: =IF($B$11="X",DATE($B$2,11,15),DATE(1905,1,1)) -> 2024-11-15 | F11: =IF($B$11="X",DATE($B$2+1,11,15),DATE(1905,1,1)) -> 2025-11-15 | V11: 7 | W11: 7
B12: x | C12: Zumbi e Consciência Negra | D12: =IF($B$12="X",DATE($B$2-1,11,20),DATE(1905,1,1)) -> 2023-11-20 | E12: =IF($B$12="X",DATE($B$2,11,20),DATE(1905,1,1)) -> 2024-11-20 | F12: =IF($B$12="X",DATE($B$2+1,11,20),DATE(1905,1,1)) -> 2025-11-20
B13: x | C13: Natal | D13: =IF($B$13="X",DATE($B$2-1,12,25),DATE(1905,1,1)) -> 2023-12-25 | E13: =IF($B$13="X",DATE($B$2,12,25),DATE(1905,1,1)) -> 2024-12-25 | F13: =IF($B$13="X",DATE($B$2+1,12,25),DATE(1905,1,1)) -> 2025-12-25 | V13: 8 | W13: 8
A14: Móveis | B14: x | C14: Sexta-Feira Santa | D14: =IF($B$14="X",$G$5-2,DATE(1905,1,1)) -> 2023-04-07 | E14: =IF($B$14="X",páscoa-2,DATE(1905,1,1)) -> 2024-03-29 | F14: =IF($B$14="X",$G$6-2,DATE(1905,1,1)) -> 2025-04-18 | V14: 9 | W14: 9
B15: x | C15: Corpus Christi | D15: =IF($B$15="X",$G$5+60,DATE(1905,1,1)) -> 2023-06-08 | E15: =IF($B$15="X",páscoa+60,DATE(1905,1,1)) -> 2024-05-30 | F15: =IF($B$15="X",$G$6+60,DATE(1905,1,1)) -> 2025-06-19 | V15: 10 | W15: 10
B16: x | C16: Terça-Feira de Carnaval | D16: =IF($B$16="X",$G$5-47,DATE(1905,1,1)) -> 2023-02-21 | E16: =IF($B$16="X",páscoa-47,DATE(1905,1,1)) -> 2024-02-13 | F16: =IF($B$16="X",$G$6-47,DATE(1905,1,1)) -> 2025-03-04 | G16: DIA | H16: MÊS | V16: 11 | W16: 11
A17: Fixos | B17: x | C17: Feriado 1 | D17: =IF($B$17="X",DATE($B$2-1,$H$17,$G$17),DATE(1905,1,1)) -> 2023-06-10 | E17: =IF($B$17="X",DATE($B$2,$H$17,$G$17),DATE(1905,1,1)) -> 2024-06-10 | F17: =IF($B$17="X",DATE($B$2+1,$H$17,$G$17),DATE(1905,1,1)) -> 2025-06-10 | G17: 10 | H17: 6 | V17: 12 | W17: 12
B18: x | C18: Feriado 2 | D18: =IF($B$18="X",DATE($B$2-1,H18,G18),DATE(1905,1,1)) -> 2023-06-24 | E18: =IF($B$18="X",DATE($B$2,H18,G18),DATE(1905,1,1)) -> 2024-06-24 | F18: =IF($B$18="X",DATE($B$2+1,H18,G18),DATE(1905,1,1)) -> 2025-06-24 | G18: 24 | H18: 6 | W18: 13
C19: Feriado 3 | D19: =IF($B$19="X",DATE($B$2-1,H19,G19),DATE(1905,1,1)) -> 1905-01-01 | E19: =IF($B$19="X",DATE($B$2,H19,G19),DATE(1905,1,1)) -> 1905-01-01 | F19: =IF($B$19="X",DATE($B$2,H19,G19),DATE(1905,1,1)) -> 1905-01-01 | G19: 5 | H19: 8 | W19: 14
C20: Feriado 4 | D20: =IF($B$20="X",DATE($B$2-1,H20,G20),DATE(1905,1,1)) -> 1905-01-01 | E20: =IF($B$20="X",DATE($B$2,H20,G20),DATE(1905,1,1)) -> 1905-01-01 | F20: =IF($B$20="X",DATE($B$2+1,H20,G20),DATE(1905,1,1)) -> 1905-01-01 | G20: 10 | H20: 5 | W20: 15
W21: 16
W22: 17
W23: 18
W24: 19
W25: 20
W26: 21
W27: 22
W28: 23
W29: 24
W30: 25
W31: 26
W32: 27
W33: 28
W34: 29
W35: 30
W36: 31
